Workbook

Sheet BIAIS
A1: N° | B1: Données | C1: Mesure du biais d'une mesure
A2: 1 | W2: echantillon
A3: 2 | V3: moyenne | W3: =L21 ->  | X3: moyenne
A4: 3 | V4: SEM | W4: =L22 ->  | X4: écartype sur l'échantillon
A5: 4 | V5: mediane | W5: =MEDIAN(B2:B251) ->  | X5: Median
A6: 5 | D6: Risque alpha maximun choisi (bilatéral) | H6: 0.05 | V6: Q1 | W6: =PERCENTILE(B2:B251,0.25) ->  | X6: premier quartile
A7: 6 | M7: 1 | V7: Q3 | W7: =PERCENTILE(B2:B251,0.75) ->  | X7: troisième quartile
A8: 7 | V8: min | W8: =MIN(B2:B251) -> 0 | X8: Minimum
A9: 8 | D9: Valeur "vraie" de la mesure | V9: max | W9: =MAX(B2:B251) -> 0 | X9: Maximum
A10: 9 | D10: Valeur réputée "Vraie" de la caraactéristique (m) | V10: 25 pct | W10: =W6 ->  | X10: position premier quartile
A11: 10 | D11: Intervalle de tolérance de la caractéristique | V11: 50 pct | W11: =W5-W6 ->  | X11: position médiane
A12: 11 | D12: Valeur de l'échantillon (si rien dans le tableau) | V12: 75 pct | W12: =W7-W5 ->  | X12: position troisième quartile
A13: 12 | D13: Taille de l'échantillon (n) | V13: min | W13: =W6-W8 ->  | X13: position barre erreur bas
A14: 13 | D14: Valeur de la moyenne de l'échantillon | V14: max | W14: =W9-W7 ->  | X14: position barre erreur du haut
A15: 14 | D15: Valeur de l'écart-type de l'échantillon
A16: 15
A17: 16 | D17: Test t théorique pour savoir si le biiais est significatif ou non
A18: 17 | D18: Comparaison d'une moyenne à une valeur donnée; écart-type inconnu
A19: 18 | D19: Taille de l'échantillon (n) | G19: =IF(H14="",COUNTA(B2:B251),H14) -> 0
A20: 19 | D20: Valeurs de la population | H20: Valeurs de l'échantillon
A21: 20 | D21: Valeur de la cible (m) | G21: =H10 -> 0 | H21: Valeur de la moyenne de l'échantillon | L21: =IF(H14="",AVERAGE(B2:B251),H14) -> 
A22: 21 | D22: Taille de l'échantillon (n) | G22: =IF(H13="",COUNTA(B2:B251),H13) -> 0 | H22: Valeur de l'écart-type de l'échantillon | L22: =IF(H15="",STDEV(B2:B251),H15) -> 
A23: 22
A24: 23 | D24: Fonction discriminante (t0) | G24: =ABS((L21-H10)/(L22/SQRT(G19))) ->  | H24: t limite de la loi de student | L24: =TINV(H6,G22-1) -> 
A25: 24 | H25: Risque alpha de conclure "significatif" à tort | L25: =TDIST(G24,G22-1,2) -> 
A26: 25 | E26: Conclusion sur le biais | J26: =IF(G24>L24,"Biais significatif","Biais non significatif") -> 
A27: 26
A28: 27
A29: 28 | D29: Récapitulatif du test | N29: Intervalle sur l'échantillon | O29: Moyenne théorique
A30: 29 | D30: Vraie valeur du mesurande | G30: =H10 -> 0 | I30: Importance du biais | L30: =ABS(G31-G30) ->  | N30: =N31+L24*L22/SQRT(G22) ->  | O30: =H10 -> 0
A31: 30 | D31: Moyenne des valeurs mesurées | G31: =L21 ->  | I31: =IF(L30>(H11/20),"Biais supérieur à IT/20","Biais inférieur à IT/20") ->  | N31: =L21 ->  | O31: =O30 -> 0
A32: 31 | N32: =N31-L24*L22/SQRT(G22) ->  | O32: =O30 -> 0
A33: 32 | D33: =IF(G24>L24,IF(L30>H11/20,"Biais significatif et important, pas acceptable","Biais significatif mais faible, acceptable"),IF(L30>H11/20,"Biais non significatif mais important, pas acceptable problème de rpétabilité","Biais non significatif et faible, acceptable")) -> 
A34: 33
A35: 34
A36: 35
A37: 36
A38: 37
A39: 38
A40: 39
A41: 40
A42: 41
A43: 42
A44: 43
A45: 44
A46: 45
A47: 46
A48: 47
A49: 48
A50: 49
A51: 50
A52: 51
A53: 52
A54: 53
A55: 54
A56: 55
A57: 56
A58: 57
A59: 58
A60: 59
A61: 60
A62: 61
A63: 62
A64: 63
A65: 64
A66: 65
A67: 66
A68: 67
A69: 68
A70: 69
A71: 70
A72: 71
A73: 72
A74: 73
A75: 74
A76: 75
A77: 76
A78: 77
A79: 78
A80: 79
A81: 80
A82: 81
A83: 82
A84: 83
A85: 84
A86: 85
A87: 86
A88: 87
A89: 88
A90: 89
A91: 90
A92: 91
A93: 92
A94: 93
A95: 94
A96: 95
A97: 96
A98: 97
A99: 98
A100: 99
A101: 100
A102: 101
A103: 102
A104: 103
A105: 104
A106: 105
A107: 106
A108: 107
A109: 108
A110: 109
A111: 110
A112: 111
A113: 112
A114: 113
A115: 114
A116: 115
A117: 116
A118: 117
A119: 118
A120: 119
A121: 120
A122: 121
A123: 122
A124: 123
A125: 124
A126: 125
A127: 126
A128: 127
A129: 128
A130: 129
A131: 130
A132: 131
A133: 132
A134: 133
A135: 134
A136: 135
A137: 136
A138: 137
A139: 138
A140: 139
A141: 140
A142: 141
A143: 142
A144: 143
A145: 144
A146: 145
A147: 146
A148: 147
A149: 148
A150: 149
A151: 150
A152: 151
A153: 152
A154: 153
A155: 154
A156: 155
A157: 156
A158: 157
A159: 158
A160: 159
A161: 160
A162: 161
A163: 162
A164: 163
A165: 164
A166: 165
A167: 166
A168: 167
A169: 168
A170: 169
A171: 170
A172: 171
A173: 172
A174: 173
A175: 174
A176: 175
A177: 176
A178: 177
A179: 178
A180: 179
A181: 180
A182: 181
A183: 182
A184: 183
A185: 184
A186: 185
A187: 186
A188: 187
A189: 188
A190: 189
A191: 190
A192: 191
A193: 192
A194: 193
A195: 194
A196: 195
A197: 196
A198: 197
A199: 198
A200: 199
... 51 more rows

Sheet Linéarité
A1: Mesure de la linéarité d'une mesure
A3: Analyse de linéarité | D3: Date | H3: Référence | N3: ref moy | O3: ref | P3: valeurs | Q3: Ecarts
A4: Moyen de mesure | D4: Type | H4: Référence | N4: =O4-$O$55 -> 0 | O4: =$B$12 -> 0 | P4: =B14 -> 0 | Q4: =P4-O4 -> 0
A5: Pièce mesurée | D5: désignation | H5: Référence | N5: =O5-$O$55 -> 0 | O5: =$B$12 -> 0 | P5: =B15 -> 0 | Q5: =P5-O5 -> 0
A6: Caractéristiques | D6: Désignation | H6: Tolérance mini | N6: 0 | O6: 0 | P6: 0 | Q6: 0
H7: Tolérance maxi | N7: 0 | O7: 0 | P7: 0 | Q7: 0
A8: Intervalle de tol | N8: 0 | O8: 0 | P8: 0 | Q8: 0
N9: 0 | O9: 0 | P9: 0 | Q9: 0
B10: 10 mesures consécutives de chacune des pièces | N10: 0 | O10: 0 | P10: 0 | Q10: 0
B11: Pièce 1 | D11: Pièce 2 | F11: Pièce 3 | H11: Pièce 4 | J11: Pièce 5 | N11: 0 | O11: 0 | P11: 0 | Q11: 0
A12: Mesure | N12: 0 | O12: 0 | P12: 0 | Q12: 0
B13: Mes | C13: ecart | D13: Mes | E13: ecart | F13: Mes | G13: ecart | H13: Mes | I13: ecart | J13: Mes | K13: ecart | N13: 0 | O13: 0 | P13: 0 | Q13: 0
A14: 1 | C14: =B14-$B$12 -> 0 | E14: =D14-$D$12 -> 0 | G14: =F14-$F$12 -> 0 | I14: =H14-$H$12 -> 0 | K14: =J14-$J$12 -> 0 | N14: 0 | O14: =$D$12 -> 0 | P14: =D14 -> 0 | Q14: 0
A15: 2 | C15: =B15-$B$12 -> 0 | E15: =D15-$D$12 -> 0 | G15: =F15-$F$12 -> 0 | I15: =H15-$H$12 -> 0 | K15: =J15-$J$12 -> 0 | N15: 0 | O15: =$D$12 -> 0 | P15: =D15 -> 0 | Q15: 0
A16: 3 | C16: 0 | E16: 0 | G16: 0 | I16: 0 | K16: 0 | N16: 0 | O16: 0 | P16: 0 | Q16: 0
A17: 4 | C17: 0 | E17: 0 | G17: 0 | I17: 0 | K17: 0 | N17: 0 | O17: 0 | P17: 0 | Q17: 0
A18: 5 | C18: 0 | E18: 0 | G18: 0 | I18: 0 | K18: 0 | N18: 0 | O18: 0 | P18: 0 | Q18: 0
A19: 6 | C19: 0 | E19: 0 | G19: 0 | I19: 0 | K19: 0 | N19: 0 | O19: 0 | P19: 0 | Q19: 0
A20: 7 | C20: 0 | E20: 0 | G20: 0 | I20: 0 | K20: 0 | N20: 0 | O20: 0 | P20: 0 | Q20: 0
A21: 8 | C21: 0 | E21: 0 | G21: 0 | I21: 0 | K21: 0 | N21: 0 | O21: 0 | P21: 0 | Q21: 0
A22: 9 | C22: 0 | E22: 0 | G22: 0 | I22: 0 | K22: 0 | N22: 0 | O22: 0 | P22: 0 | Q22: 0
A23: 10 | C23: 0 | E23: 0 | G23: 0 | I23: 0 | K23: 0 | N23: 0 | O23: 0 | P23: 0 | Q23: 0
A24: Moyenne | C24: =AVERAGE(C14:C23) -> 0 | E24: =AVERAGE(E14:E23) -> 0 | G24: =AVERAGE(G14:G23) -> 0 | I24: =AVERAGE(I14:I23) -> 0 | K24: =AVERAGE(K14:K23) -> 0 | N24: 0 | O24: =$F$12 -> 0 | P24: =F14 -> 0 | Q24: 0
N25: 0 | O25: =$F$12 -> 0 | P25: =F15 -> 0 | Q25: 0
N26: 0 | O26: 0 | P26: 0 | Q26: 0
N27: 0 | O27: 0 | P27: 0 | Q27: 0
N28: 0 | O28: 0 | P28: 0 | Q28: 0
N29: 0 | O29: 0 | P29: 0 | Q29: 0
N30: 0 | O30: 0 | P30: 0 | Q30: 0
N31: 0 | O31: 0 | P31: 0 | Q31: 0
N32: 0 | O32: 0 | P32: 0 | Q32: 0
N33: 0 | O33: 0 | P33: 0 | Q33: 0
N34: 0 | O34: =$H$12 -> 0 | P34: =H14 -> 0 | Q34: 0
N35: 0 | O35: =$H$12 -> 0 | P35: =H15 -> 0 | Q35: 0
N36: 0 | O36: 0 | P36: 0 | Q36: 0
N37: 0 | O37: 0 | P37: 0 | Q37: 0
N38: 0 | O38: 0 | P38: 0 | Q38: 0
N39: 0 | O39: 0 | P39: 0 | Q39: 0
N40: 0 | O40: 0 | P40: 0 | Q40: 0
N41: 0 | O41: 0 | P41: 0 | Q41: 0
N42: 0 | O42: 0 | P42: 0 | Q42: 0
N43: 0 | O43: 0 | P43: 0 | Q43: 0
N44: 0 | O44: =$J$12 -> 0 | P44: =J14 -> 0 | Q44: 0
N45: 0 | O45: =$J$12 -> 0 | P45: =J15 -> 0 | Q45: 0
N46: 0 | O46: 0 | P46: 0 | Q46: 0
N47: 0 | O47: 0 | P47: 0 | Q47: 0
N48: 0 | O48: 0 | P48: 0 | Q48: 0
N49: 0 | O49: 0 | P49: 0 | Q49: 0
N50: 0 | O50: 0 | P50: 0 | Q50: 0
N51: 0 | O51: 0 | P51: 0 | Q51: 0
N52: 0 | O52: 0 | P52: 0 | Q52: 0
N53: 0 | O53: 0 | P53: 0 | Q53: 0
O55: =AVERAGE(O4:O53) -> 0
O57: =LINEST(Q4:Q53,O4:O53,,TRUE) -> 0 | P57: 0
O58: 0 | P58: 0
O59: 1 | P59: 0
P60: 49
O61: 0 | P61: 0
D75: Coefficients | F75: s | G75: Stat t | H75: Probabilité | J75: Conclusion
B76: Biais | D76: =P57 -> 0 | F76: =P58 -> 0 | G76: =ABS(D76/F76) ->  | H76: =TDIST(G76,P60,2) ->  | J76: =IF(H76<0.05,"Significatif","Non Significatif") -> 
B77: Pente | D77: =O57 -> 0 | F77: =O58 -> 0 | G77: =ABS(D77/F77) ->  | H77: =TDIST(G77,P60,2) ->  | J77: =IF(H77<0.05,"Significatif","Non Significatif") -> 
B80: Importance du biais | D80: =ABS(D76/D8) ->  | F80: =IF(D80<0.05,"Le biais est faible", "Le biais est important") -> 

Sheet R & R RAPIDE
B4: Moyen de mesure | D4: Référence : | F4: Désignation :
B5: Pièces mesurées | D5: Référence : | F5: Lot :
B6: Caractéristiques | D6: Cible : | F6: Intervalle de tolérance
B12: Pièce | C12: Contrôleur 1 | D12: Contôleur 2 | E12: Contrôleur 3 | F12: Moyenne /X | G12: étendue R | AE12: =IF(AND(C13="",D13="",E13=""),0,1) -> 0
B13: 1 | F13: =IF(AE12=1,AVERAGE(C13:E13),"") ->  | G13: =IF(AE12=1,(MAX(C13,D13,E13)-MIN(C13:E13)),"") ->  | AE13: 0
B14: 2 | F14: =IF(AE13=1,AVERAGE(C14:E14),"") ->  | AE14: 0
B15: 3 | AE15: 0
B16: 4 | AE16: 0
B17: 5 | AE17: 0
B18: 6 | AE18: 0
B19: 7 | AE19: 0
B20: 8 | AE20: 0
B21: 9 | AE21: 0
B22: 10
E23: Moyennes : | F23: =AVERAGE(F13:F22) ->  | G23: =AVERAGE(G13:G22) -> 
B24: =IF(SUM('R & R RAPIDE'!B104:C104)<>0,"Le nombre de mesures doit être identique pour chaque opérateur","") -> 
B25: =IF(MAX(G13:G22)>E26,"La limite de contrôle des étendues est dépassée","") -> 
B26: LIC /X : | C26: =F23-G23*C115 ->  | D26: LSCR : | E26: =G23*C116 -> 
B27: LSC /X : | C27: =F23+G23*C115 -> 
A29: sigma i | B29: =G23/'R & R RAPIDE'!C114 ->  | D29: IT mini pour être capable | F29: =24*B29 -> 
A30: dispersion i | B30: =6*B29 -> 
A31: Cpc | B31: =H6/(B30) -> 
A32: Procédé : | B32: =IF(B31>4, "capable", "non capable") -> 
A92: =IF(ISBLANK('R & R RAPIDE'!C13),0,1) -> 0 | B92: =IF(ISBLANK('R & R RAPIDE'!D13),0,1) -> 0 | C92: =IF(ISBLANK('R & R RAPIDE'!E13),0,1) -> 0
A93: =IF(ISBLANK('R & R RAPIDE'!C14),0,1) -> 0 | B93: =IF(ISBLANK('R & R RAPIDE'!D14),0,1) -> 0 | C93: =IF(ISBLANK('R & R RAPIDE'!E14),0,1) -> 0
A94: =IF(ISBLANK('R & R RAPIDE'!C15),0,1) -> 0 | B94: =IF(ISBLANK('R & R RAPIDE'!D15),0,1) -> 0 | C94: =IF(ISBLANK('R & R RAPIDE'!E15),0,1) -> 0
A95: =IF(ISBLANK('R & R RAPIDE'!C16),0,1) -> 0 | B95: =IF(ISBLANK('R & R RAPIDE'!D16),0,1) -> 0 | C95: =IF(ISBLANK('R & R RAPIDE'!E16),0,1) -> 0
A96: =IF(ISBLANK('R & R RAPIDE'!C17),0,1) -> 0 | B96: =IF(ISBLANK('R & R RAPIDE'!D17),0,1) -> 0 | C96: =IF(ISBLANK('R & R RAPIDE'!E17),0,1) -> 0
A97: =IF(ISBLANK('R & R RAPIDE'!C18),0,1) -> 0 | B97: =IF(ISBLANK('R & R RAPIDE'!D18),0,1) -> 0 | C97: =IF(ISBLANK('R & R RAPIDE'!E18),0,1) -> 0
A98: =IF(ISBLANK('R & R RAPIDE'!C19),0,1) -> 0 | B98: =IF(ISBLANK('R & R RAPIDE'!D19),0,1) -> 0 | C98: =IF(ISBLANK('R & R RAPIDE'!E19),0,1) -> 0
A99: =IF(ISBLANK('R & R RAPIDE'!C20),0,1) -> 0 | B99: =IF(ISBLANK('R & R RAPIDE'!D20),0,1) -> 0 | C99: =IF(ISBLANK('R & R RAPIDE'!E20),0,1) -> 0
A100: =IF(ISBLANK('R & R RAPIDE'!C21),0,1) -> 0 | B100: =IF(ISBLANK('R & R RAPIDE'!D21),0,1) -> 0 | C100: =IF(ISBLANK('R & R RAPIDE'!E21),0,1) -> 0
A101: =IF(ISBLANK('R & R RAPIDE'!C22),0,1) -> 0 | B101: =IF(ISBLANK('R & R RAPIDE'!D22),0,1) -> 0 | C101: =IF(ISBLANK('R & R RAPIDE'!E22),0,1) -> 0 | D101: Nb opérateur
A102: =IF(SUM(A92:A101)=0,0,1) -> 0 | B102: =IF(SUM(B92:B101)=0,0,1) -> 0 | C102: =IF(SUM(C92:C101)=0,0,1) -> 0 | D102: =SUM(A102:C102) -> 0
A103: =SUM(A92:A101) -> 0 | B103: =SUM(B92:B101) -> 0 | C103: =SUM(C92:C101) -> 0 | D103: =MAX(A103:C103) -> 0
B104: =IF(B102=1,B103-$A103,0) -> 0 | C104: =IF(C102=1,C103-$A103,0) -> 0
A107: Taille | B107: d2 | C107: A2 | D107: D4
A108: 2 | B108: 1.128 | C108: 1.88 | D108: 3.267
A109: 3 | B109: 1.693 | C109: 1.023 | D109: 2.574
A110: 4 | B110: 2.059 | C110: 0.729 | D110: 2.282
A111: 5 | B111: 2.326 | C111: 0.577 | D111: 2.114
A112: 6 | B112: 2.326 | C112: 0.486 | D112: 2.004
B114: d2* | C114: =VLOOKUP(D102,A136:V155,D103+1) -> 
B115: A2 | C115: =VLOOKUP(D102,A107:C112,3) -> 
B116: D4 | C116: =VLOOKUP(D102,A107:D112,4) -> 
A120: LIC | B120: LSC | D120: Moyennes
A121: =C$26 ->  | B121: =C$27 ->  | C121: =$F$23 ->  | D121: =IF(F13="",F$23,F13) ->  | F121: 1 | G121: =E$26 -> 
F122: 2
F123: 3
F124: 4
F125: 5
F126: 6
F127: 7
F128: 8
F129: 9
F130: 10
B133: d2*
B135: Nombre de sous-groupes = Nombre de pièces x Nombre d'opérateurs
B136: 1 | C136: 2 | D136: 3 | E136: 4 | F136: 5 | G136: 6 | H136: 7 | I136: 8 | J136: 9 | K136: 10 | L136: 11 | M136: 12 | N136: 13 | O136: 14 | P136: 15 | Q136: 16 | R136: 17 | S136: 18 | T136: 19 | U136: 20 | V136: >20
A137: 2 | B137: 1.41421 | C137: 1.27931 | D137: 1.23105 | E137: 1.20621 | F137: 1.19105 | G137: 1.18083 | H137: 1.17348 | I137: 1.16794 | J137: 1.16361 | K137: 1.16014 | L137: 1.15729 | M137: 1.1549 | N137: 1.15289 | O137: 1.15115 | P137: 1.14965 | Q137: 1.14833 | R137: 1.14717 | S137: 1.14613 | T137: 1.1452 | U137: 1.14437 | V137: 1.12838
A138: 3 | B138: 1.91155 | C138: 1.80538 | D138: 1.76858 | E138: 1.74989 | F138: 1.73857 | G138: 1.73099 | H138: 1.72555 | I138: 1.72147 | J138: 1.71828 | K138: 1.71573 | L138: 1.71363 | M138: 1.71189 | N138: 1.71041 | O138: 1.70914 | P138: 1.70804 | Q138: 1.70708 | R138: 1.70623 | S138: 1.70547 | T138: 1.7048 | U138: 1.70419 | V138: 1.69257
A139: 4 | B139: 2.23887 | C139: 2.15069 | D139: 2.12049 | E139: 2.10522 | F139: 2.09601 | G139: 2.0985 | H139: 2.08543 | I139: 2.08212 | J139: 2.07953 | K139: 2.07746 | L139: 2.07577 | M139: 2.07436 | N139: 2.07316 | O139: 2.07213 | P139: 2.07125 | Q139: 2.07047 | R139: 2.06678 | S139: 2.06917 | T139: 2.06862 | U139: 2.06813 | V139: 2.05875
A140: 5 | B140: 2.48124 | C140: 2.400484 | D140: 2.37883 | E140: 2.36571 | F140: 2.35781 | G140: 2.35253 | H140: 2.34875 | I140: 2.34591 | J140: 2.3437 | K140: 2.34192 | L140: 2.34048 | M140: 2.33927 | N140: 2.33824 | O140: 2.33737 | P140: 2.33661 | Q140: 2.33594 | R140: 2.35535 | S140: 2.33483 | T140: 2.33436 | U140: 2.33394 | V140: 2.32593
A141: 6 | B141: 2.67253 | C141: 2.60438 | D141: 2.58127 | E141: 2.56964 | F141: 2.56263 | G141: 2.55795 | H141: 2.5546 | I141: 2.55208 | J141: 2.55013 | K141: 2.54856 | L141: 2.54728 | M141: 2.54621 | N141: 2.5423 | O141: 2.54452 | P141: 2.54385 | Q141: 2.54326 | R141: 2.54274 | S141: 2.54228 | T141: 2.54187 | U141: 2.54149 | V141: 2.53441
A142: 7 | B142: 2.82981 | C142: 70 | D142: 70 | E142: 70 | F142: 70 | G142: 70 | H142: 70 | I142: 70 | J142: 70 | K142: 70 | L142: 70 | M142: 70 | N142: 70 | O142: 70 | P142: 70 | Q142: 70 | R142: 70 | S142: 70 | T142: 70 | U142: 70 | V142: 2.70436
A143: 8 | B143: 2.96288 | C143: 80 | D143: 80 | E143: 80 | F143: 80 | G143: 80 | H143: 80 | I143: 80 | J143: 80 | K143: 80 | L143: 80 | M143: 80 | N143: 80 | O143: 80 | P143: 80 | Q143: 80 | R143: 80 | S143: 80 | T143: 80 | U143: 80 | V143: 2.8472
A144: 9 | B144: 3.07794 | C144: 90 | D144: 90 | E144: 90 | F144: 90 | G144: 90 | H144: 90 | I144: 90 | J144: 90 | K144: 90 | L144: 90 | M144: 90 | N144: 90 | O144: 90 | P144: 90 | Q144: 90 | R144: 90 | S144: 90 | T144: 90 | U144: 90 | V144: 2.97003
A145: 10 | B145: 3.17905 | C145: 100 | D145: 100 | E145: 100 | F145: 100 | G145: 100 | H145: 100 | I145: 100 | J145: 100 | K145: 100 | L145: 100 | M145: 100 | N145: 100 | O145: 100 | P145: 100 | Q145: 100 | R145: 100 | S145: 100 | T145: 100 | U145: 100 | V145: 3.07751
A146: 11 | B146: 3.26909 | C146: 110 | D146: 110 | E146: 110 | F146: 110 | G146: 110 | H146: 110 | I146: 110 | J146: 110 | K146: 110 | L146: 110 | M146: 110 | N146: 110 | O146: 110 | P146: 110 | Q146: 110 | R146: 110 | S146: 110 | T146: 110 | U146: 110 | V146: 3.17287
A147: 12 | B147: 3.35016 | V147: 3.25846
A148: 13 | B148: 3.42378 | V148: 3.33598
A149: 14 | B149: 3.49116 | V149: 3.40676
A150: 15 | B150: 3.55333 | V150: 3.47193
A151: 16 | B151: 3.61071 | V151: 3.53198
A152: 17 | B152: 3.66422 | V152: 3.58788
A153: 18 | B153: 3.71424 | V153: 3.64006
A154: 19 | B154: 3.76118 | V154: 3.68896
A155: 20 | B155: 3.80537 | V155: 3.735

Sheet R & R COMPLET
A1: Cpc (Capabilité du processus de contrôle) Méthode de l'étendue et Analyse de la Variance | O1: Conception et réalisation : Pr. Maurice Pillet Université de Savoie - Laboratoire SYMME IUT ANNECY QLIO - tous droits réservés | T1: CMC par l'Analyse de la Variance
A3: Analyse Cpc | D3: Date | H3: Référence
A4: Moyen de mesure | D4: Type | H4: Référence
A5: Pièce mesurée | D5: désignation | H5: Référence
A6: Caractéristiques | D6: Désignation | H6: Tolérance mini | M6: Intervalle de tol | P6: =J7-J6 -> 0
H7: Tolérance maxi | M7: Sigma connu de la population | V7: SS | W7: ddl | X7: Moy SS | Y7: ddl' | Z7: Moy SS' | AA7: Fexp | AB7: Flimite | AC7: Risque | AD7: Signif | AE7: Contr totale | AF7: Source | AG7: Variance | AH7: sigma | AI7: Sigma | AJ7: Cont instrum | AK7: Cont totale
U8: Pièces | V8: =O120*DEVSQ(AA17:AA26) ->  | W8: =B132-1 -> -1 | X8: =V8/W8 ->  | Y8: =W8 -> -1 | Z8: =X8 ->  | AA8: =IF(AC10<0.05,X8/X10,Z8/Z11) ->  | AB8: =FINV(0.05,W8,Y$10) ->  | AC8: =FDIST(AA8,W8,Y10) ->  | AD8: =IF(AA8>AB8,"OUI","NON") ->  | AE8: =V8/V$12 ->  | AF8: Pièces | AG8: =IF(AC10<0.05,(Z8-Z10)/(K136*K137),(Z8-Z11)/(K137*K136)) ->  | AH8: =SQRT(AG8) ->  | AI8: =IF(AH8<0,0,AH8) ->  | AK8: =AG8/$AG$12 -> 
B9: Opérateur 1 | G9: Opérateur 2 | L9: Opérateur 3 | U9: Opérateurs | V9: =E132*DEVSQ(V22:V24) ->  | W9: =K136-1 -> -1 | X9: =V9/W9 ->  | Y9: =W9 -> -1 | Z9: =X9 ->  | AA9: =IF(AC10<0.05,X9/X10,Z9/Z11) ->  | AB9: =FINV(0.05,W9,Y$10) ->  | AC9: =FDIST(AA9,W9,Y10) ->  | AD9: =IF(AA9>AB9,"OUI","NON") ->  | AE9: =V9/V$12 ->  | AF9: reproductibilité | AG9: =IF(Z9<Z11,0,IF(AC10<0.05,IF(Z9<Z10,0,(Z9-Z10)/(K138*K137)),(Z9-Z11)/(K138*K137))) ->  | AH9: =SQRT(AG9) ->  | AI9: =IF(AH9<0,0,AH9) ->  | AJ9: =AG9/$AG$13 ->  | AK9: =AG9/$AG$12 -> 
A10: N° | B10: 1ère | C10: 2ème | D10: 3ème | E10: /X | F10: R | G10: 1ère | H10: 2ème | I10: 3ème | J10: /X | K10: R | L10: 1ère | M10: 2ème | N10: 3ème | O10: /X | P10: R | Q10: //X | R10: /R | U10: Pièces/opé | V10: =E131*DEVSQ(Z57:AB66) ->  | W10: =W8*W9 -> 1 | X10: =V10/W10 ->  | Y10: =IF(AC10>0.05,W11+W10,W10) ->  | Z10: =IF(AC10>0.05,0,X10) ->  | AA10: =X10/X11 ->  | AB10: =FINV(0.05,W10,W$11) ->  | AC10: =FDIST(AA10,W10,W11) ->  | AD10: =IF(AA10>AB10,"OUI","NON") ->  | AE10: =IF(AC10>0.05,0,)*V10/V$12 ->  | AF10: Interaction | AG10: =IF(AC10>0.05,0,(Z10-Z11)/K137) ->  | AH10: =SQRT(AG10) ->  | AI10: =IF(Z10-Z11>0,SQRT((Z10-Z11)/K137),0) ->  | AJ10: =AG10/$AG$13 ->  | AK10: =AG10/$AG$12 -> 
A11: pièce | B11: mesure | C11: mesure | D11: mesure | G11: mesure | H11: mesure | I11: mesure | L11: mesure | M11: mesure | N11: mesure | U11: Résidus | V11: =V12-V9-V8-V10 ->  | W11: =W12-W9-W8-W10 -> 0 | X11: =V11/W11 ->  | Y11: =IF(AC10>0.05,W10+W11,W11) ->  | Z11: =IF(AC10>0.05,(V10+V11)/(Y11),X11) ->  | AE11: =IF(AC10>0.05,(V10+V11)/V12,V11/V$12) ->  | AF11: répétabilité | AG11: =Z11 ->  | AH11: =SQRT(AG11) ->  | AI11: =SQRT(Z11) ->  | AJ11: =AG11/$AG$13 ->  | AK11: =AG11/$AG$12 ->  | AP11: Xb1 | AQ11: Min1 | AR11: Max1 | AS11: Xb2 | AT11: Min2 | AU11: Max2 | AV11: Xb3 | AW11: Min3 | AX11: Max3
A12: 1 | E12: =IF(ISBLANK(B12),"",AVERAGE(B12:D12)) ->  | F12: =IF(B12="","",MAX(B12:D12)-MIN(B12:D12)) ->  | J12: =IF(ISBLANK(G12),"",AVERAGE(G12:I12)) ->  | K12: =IF(G12="","",MAX(G12:I12)-MIN(G12:I12)) ->  | O12: =IF(ISBLANK(L12),"",AVERAGE(L12:N12)) ->  | P12: =IF(L12="","",MAX(L12:N12)-MIN(L12:N12)) ->  | Q12: =IF(E12="","",AVERAGE(E12,J12,O12)) ->  | U12: Total | V12: =DEVSQ(B12:D21,G12:I21,L12:N21) ->  | W12: =COUNT(B12:D21,G12:I21,L12:N21)-1 -> -1 | X12: =VAR(B12:D21,G12:I21,L12:N21) ->  | Y12: =COUNT(D12:F21,I12:K21,N12:P21)-1 -> -1 | Z12: =X12 ->  | AF12: Total | AG12: =SUM(AG8:AG11) ->  | AH12: =SQRT(AG12) ->  | AI12: =AH12 ->  | AK12: =AG12/$AG$12 ->  | AO12: 1 | AP12: =IF(E12="",#N/A,E12) ->  | AQ12: =AP12-MIN(B12:D12) ->  | AR12: =MAX(B12:D12)-AP12 ->  | AS12: =IF(J12="",#N/A,J12) ->  | AT12: =AS12-MIN(G12:I12) ->  | AU12: =MAX(G12:I12)-AS12 ->  | AV12: =IF(O12="",#N/A,O12) ->  | AW12: =AV12-MIN(L12:N12) ->  | AX12: =MAX(L12:N12)-AV12 -> 
A13: 2 | E13: =IF(ISBLANK(B13),"",AVERAGE(B13:D13)) ->  | F13: =IF(B13="","",MAX(B13:D13)-MIN(B13:D13)) ->  | J13: =IF(ISBLANK(G13),"",AVERAGE(G13:I13)) ->  | K13: =IF(G13="","",MAX(G13:I13)-MIN(G13:I13)) ->  | O13: =IF(ISBLANK(L13),"",AVERAGE(L13:N13)) ->  | P13: =IF(L13="","",MAX(L13:N13)-MIN(L13:N13)) ->  | U13: instrument | V13: =V9+V10+V11 ->  | AG13: =AG12-AG8 ->  | AH13: =AH12-AH8 ->  | AO13: 2 | AP13: =IF(E13="",#N/A,E13) ->  | AS13: =IF(J13="",#N/A,J13) ->  | AV13: =IF(O13="",#N/A,O13) -> 
A14: 3 | AO14: 3
A15: 4 | Q15: =IF(E15="","",AVERAGE(E15,J15,O15)) ->  | AO15: 4
A16: 5 | AA16: Moyenne | AB16: Effets | AC16: Graph | AF16: Moyenne | AI16: Effets | AO16: 5
A17: 6 | V17: Disp instr | W17: =6*SQRT(AI9^2+AI10^2+AI11^2) ->  | X17: =W17/6 ->  | Z17: P 1 | AA17: =Q12 ->  | AB17: =IF(O120>0,AA17-$F$24,"") ->  | AC17: =IF(ISNUMBER(AA17),AA17,#N/A) ->  | AE17: Mes 1 | AF17: =B22 ->  | AI17: =IF(AF17="","",AF17-$F$24) ->  | AJ17: =IF(ISNUMBER(AF17),AF17,#N/A) ->  | AO17: 6
A18: 7 | V18: Cpc = | W18: =IF(V13=0,10000,P6/(W17)) ->  | Z18: P 2 | AC18: =IF(ISNUMBER(AA18),AA18,#N/A) ->  | AE18: Mes 2 | AF18: =C22 ->  | AO18: 7
A19: 8 | Z19: P 3 | AE19: Mes 3 | AF19: =G22 ->  | AO19: 8
A20: 9 | Z20: P 4 | AE20: Mes 4 | AF20: =H22 ->  | AO20: 9
A21: 10 | V21: Moyenne | W21: Effets | X21: Graph | Z21: P 5 | AE21: Mes 5 | AF21: =L22 ->  | AO21: 10
B22: =IF(B132>0,AVERAGE(B12:B21),"") ->  | C22: =IF(C132>0,AVERAGE(C12:C21),"") ->  | D22: =IF(D132>0,AVERAGE(D12:D21),"") ->  | E22: =IF(E132=0,"",AVERAGE(E12:E21)) ->  | F22: =IF(E132=0,"",AVERAGE(F12:F21)) ->  | G22: =IF(G132>0,AVERAGE(G12:G21),"") ->  | H22: =IF(H132>0,AVERAGE(H12:H21),"") ->  | I22: =IF(I132>0,AVERAGE(I12:I21),"") ->  | J22: =IF(J132=0,"",AVERAGE(J12:J21)) ->  | K22: =IF(J132=0,"",AVERAGE(K12:K21)) ->  | L22: =IF(L132>0,AVERAGE(L12:L21),"") ->  | M22: =IF(M132>0,AVERAGE(M12:M21),"") ->  | N22: =IF(N132>0,AVERAGE(N12:N21),"") ->  | O22: =IF(O132=0,"",AVERAGE(O12:O21)) ->  | P22: =IF(O132=0,"",AVERAGE(P12:P21)) ->  | U22: Opérateur 1 | V22: =E22 ->  | W22: =IF(E132>0,V22-$F$24,"") ->  | X22: =IF(ISNUMBER(V22),V22,#N/A) ->  | Z22: P 6 | AE22: Mes 6 | AF22: =M22 -> 
E23: //X1 | F23: /R1 | J23: //X2 | K23: /R2 | O23: //X3 | P23: /R3 | U23: Opérateur 2 | V23: =J22 ->  | W23: =IF(J132>0,V23-$F$24,"") ->  | X23: =IF(ISNUMBER(V23),V23,#N/A) ->  | Z23: P 7
B24: Moyenne générale = | F24: =IF(K136=3,AVERAGE(E22,J22,O22),AVERAGE(J22,E22)) ->  | K24: //R = | L24: =AVERAGE(F22,K22,P22) ->  | U24: Opérateur 2 | V24: =O22 ->  | W24: =IF(O132>0,V24-$F$24,"") ->  | X24: =IF(ISNUMBER(V24),V24,#N/A) ->  | Z24: P 8
A25: messages | C25: =IF(Q131=1,"","Les opérateurs doivent effectuer le même nombre de série de mesures") ->  | Z25: P 9
C26: =IF(Q132=1,"","Chaque opérateur doit contrôler le même nombre de pièces, le même nombre de fois") ->  | Z26: P 10
C27: =IF(AND(Q31=0,K138>0),"Problème de définition de l'instrument de mesure, la dispersion de mesure est nulle","") -> 
C28: =IF(MAX(F12:F21,K12:K21,P12:P21)>B76,"La limite des étendues est dépassée","") -> 
A30: MSA | D30: Méthode Range | H30: Méthode ANAVAR | M30: Méthode Range | Q30: ANAVAR
A31: sigma répétabilité (EV) | D31: =L24/E141 ->  | E31: =D31^2/(D31^2+D32^2) ->  | F31: =D31/$D$36 ->  | G31: =D31/$D$37 ->  | H31: =AI11 ->  | I31: =H31^2/(H31^2+H32^2) ->  | J31: =H31/$H$36 ->  | K31: =H31/$H$37 ->  | M31: s instrument | O31: =D34 ->  | Q31: =H34 -> 
A32: sigma reproductibilité (AV) | D32: =IF(D115^2-(D31^2/(K137*K138))>0,SQRT(D115^2-(D31^2/(K137*K138))),0) ->  | E32: =D32^2/(D31^2+D32^2) ->  | F32: =D32/$D$36 ->  | G32: =D32/$D$37 ->  | H32: =SQRT(AI9^2+H33^2) ->  | I32: =H32^2/(H31^2+H32^2) ->  | K32: =H32/$H$37 ->  | M32: Cpc= | O32: =IF(D34=0,10000,P6/(6*D34)) ->  | Q32: =W18 -> 
A33: Interaction | D33: - | E33: - | F33: - | G33: - | H33: =AI10 ->  | I33: =H33^2/(H31^2+H32^2) ->  | K33: =H33/$H$37 ->  | M33: Interaction | O33: - | Q33: =AD10 -> 
A34: sigma instrument (GRR) | D34: =SQRT(POWER(D31,2)+POWER(D32,2)) ->  | E34: 1 | F34: =D34/$D$36 ->  | G34: =D34/$D$37 ->  | H34: =SQRT(H31^2+H32^2) ->  | I34: 1 | K34: =H34/$H$37 ->  | M34: Procédé: | O34: =IF(O32>4,"acceptable", "inacceptable") ->  | Q34: =IF(Q32>4,"acceptable", "inacceptable") -> 
A35: sigma pièces (PV) | D35: =IF(D116^2>D31^2/(K138*K137),SQRT(D116^2-D31^2/(K138*K137))) ->  | F35: =D35/$D$36 ->  | G35: =D35/$D$37 ->  | H35: =AI8 ->  | K35: =H35/$H$37 ->  | M35: CpcProd (sprod/sMes) | P35: =IF(P7="",D36/D34,P7/D34) ->  | Q35: =IF(P7="",H36/H34,P7/H34) -> 
A36: Sigma Total (TV) | D36: =SQRT(D116^2+D31^2+D32^2) ->  | F36: =D36/$D$36 ->  | G36: - | H36: =SQRT(H35^2+H31^2+H32^2) ->  | K36: - | M36: Nb de catégories ndc | O36: =IF(P7="",1.41*(D35/D34),1.41*(P7/D34)) ->  | Q36: =IF(P7="",1.41*(H35/H34),1.41*(P7/H34)) -> 
A37: Sigma Total estimé (IT/6) | D37: =P6/6 -> 0 | F37: - | G37: 1 | H37: =P6/6 -> 0 | J37: - | K37: 1
A39: Interprétation
A40: =IF(Q32<3,"La capabilité du processus de contrôle est inférieure à 3, le processus n'est pas adaptée à la tolérance souhaitée",IF(Q32<4,"La capabilité du processus de contrôle est < à 4 mais > à 3, le processus n'est pas adaptée à la tolérance souhaitée suf pour des tolérances très serrées","La capabilité du processus de contrôle est supérieure à 4, le processus est adaptée à la tolérance souhaitée")) -> 
A41: =IF(Q35<3,"Le ratio Cpc Prod est inférieure à 3, le processus de mersure n'est pas adaptée à la dispersion de la production observée",IF(Q35<4,"Le ratio Cpc Prod est < à 4 mais > à 3, le processus de mesure n'est pas adaptée à la la dispersion observée","Le ratio Cpc Prod est est supérieure à 4, le processus de mesure est adaptée à la dispersion observée")) -> 
A42: Part de la dispersion imputable à la répétabilité des opérateurs | I42: =I31 -> 
A43: Part de la dispersion imputable à la reproductibilité entre opérateurs | I43: =I32 -> 
A44: Part de la dispersion imputable à l'interaction pièces/opérateurs | I44: =I33 -> 
V56: Opé1 | W56: Opé2 | X56: Opé3 | Z56: Opé1 | AA56: Opé2 | AB56: Opé3 | AD56: Répétabilité
U57: P1 | V57: =IF(F12="","",AVERAGE(B12:D12)) ->  | W57: =IF(K12="","",AVERAGE(G12:I12)) ->  | X57: =IF(P12="","",AVERAGE(L12:N12)) ->  | Y57: P1 | Z57: =IF(V57="","",V57-W$22-AB17-$F$24) ->  | AA57: =IF(W57="","",W57-W$23-AB17-$F$24) ->  | AB57: =IF(X57="","",X57-W$24-AB17-$F$24) ->  | AD57: Reproductibilité
U58: P2 | Y58: P2 | AD58: Interaction
U59: P3 | Y59: P3 | AD59: Instrument
U60: P4 | Y60: P4 | AD60: Pieces
U61: P5 | Y61: P5
U62: P6 | Y62: P6
U63: P7 | Y63: P7
U64: P8 | Y64: P8
U65: P9 | Y65: P9
U66: P10 | Y66: P10
V72: Opé1 | W72: Opé2 | X72: Opé3
U73: P1 | V73: =IF(V57="",#N/A,V57) -> 
U74: P2
U75: P3
A76: LSCR = | B76: =B140*L24 ->  | D76: LSC /X : | E76: =F24+L24*B144 ->  | F76: LIC /X : | G76: =F24-L24*B144 ->  | U76: P4
U77: P5
U78: P6
U79: P7
U80: P8
U81: P9 | V81: =IF(V65="",#N/A,V65) -> 
U82: P10
A115: Reproductibilité | D115: =(MAX(E22,J22,O22)-MIN(E22,J22,O22))/E142 ->  | E115: =D115^2-(D31^2/(K137*K138)) -> 
A116: sigma pièces (PV) | D116: =(MAX(Q12:Q21)-MIN(Q12:Q21))/E143 -> 
C119: OP1 | H119: OP2 | M119: OP3
B120: =IF(ISBLANK(B12),0,1) -> 0 | C120: 0 | D120: 0 | G120: =IF(ISBLANK(G12),0,1) -> 0 | H120: 0 | I120: 0 | L120: =IF(ISBLANK(L12),0,1) -> 0 | M120: 0 | N120: 0 | O120: =SUM(B120:D120,G120:I120,L120:N120) -> 0
B121: 0 | C121: 0 | D121: 0 | G121: 0 | H121: 0 | I121: 0 | L121: 0 | M121: 0 | N121: 0 | O121: =SUM(B121:D121,G121:I121,L121:N121) -> 0
B122: 0 | C122: 0 | D122: 0 | G122: 0 | H122: 0 | I122: 0 | L122: 0 | M122: 0 | N122: 0 | O122: 0
B123: 0 | C123: 0 | D123: 0 | G123: 0 | H123: 0 | I123: 0 | L123: 0 | M123: 0 | N123: 0 | O123: 0
B124: 0 | C124: 0 | D124: 0 | G124: 0 | H124: 0 | I124: 0 | L124: 0 | M124: 0 | N124: 0 | O124: 0
B125: 0 | C125: 0 | D125: 0 | G125: 0 | H125: 0 | I125: 0 | L125: 0 | M125: 0 | N125: 0 | O125: 0
B126: 0 | C126: 0 | D126: 0 | G126: 0 | H126: 0 | I126: 0 | L126: 0 | M126: 0 | N126: 0 | O126: 0
B127: 0 | C127: 0 | D127: 0 | G127: 0 | H127: 0 | I127: 0 | L127: 0 | M127: 0 | N127: 0 | O127: 0
B128: 0 | C128: 0 | D128: 0 | G128: 0 | H128: 0 | I128: 0 | L128: 0 | M128: 0 | N128: 0 | O128: 0
B129: 0 | C129: 0 | D129: 0 | G129: 0 | H129: 0 | I129: 0 | L129: 0 | M129: 0 | N129: 0 | O129: 0
Q130: Test si nb de mesures constantes
B131: =IF(SUM(B120:B129)=0,0,1) -> 0 | C131: =IF(SUM(C120:C129)=0,0,1) -> 0 | D131: =IF(SUM(D120:D129)=0,0,1) -> 0 | E131: =SUM(B131:D131) -> 0 | G131: =IF(SUM(G120:G129)=0,0,1) -> 0 | H131: =IF(SUM(H120:H129)=0,0,1) -> 0 | I131: =IF(SUM(I120:I129)=0,0,1) -> 0 | J131: =SUM(G131:I131) -> 0 | L131: =IF(SUM(L120:L129)=0,0,1) -> 0 | M131: =IF(SUM(M120:M129)=0,0,1) -> 0 | N131: =IF(SUM(N120:N129)=0,0,1) -> 0 | O131: =SUM(L131:N131) -> 0 | Q131: =IF((E131+J131+O131)<>(K136*E131),0,1) -> 1
B132: =SUM(B120:B129) -> 0 | C132: =SUM(C120:C129) -> 0 | D132: =SUM(D120:D129) -> 0 | E132: =SUM(B132:D132) -> 0 | G132: =SUM(G120:G129) -> 0 | H132: =SUM(H120:H129) -> 0 | I132: =SUM(I120:I129) -> 0 | J132: =SUM(G132:I132) -> 0 | L132: =SUM(L120:L129) -> 0 | M132: =SUM(M120:M129) -> 0 | N132: =SUM(N120:N129) -> 0 | O132: =SUM(L132:N132) -> 0 | Q132: =IF((E132+J132+O132)<>(K136*E132),0,1) -> 1
C133: =IF(C131=1,C132-$B132,0) -> 0 | D133: =IF(D131=1,D132-$B132,0) -> 0 | H133: =IF(H131=1,H132-$G132,0) -> 0 | I133: =IF(I131=1,I132-$G132,0) -> 0 | M133: =IF(M131=1,M132-$L132,0) -> 0 | N133: =IF(N131=1,N132-$L132,0) -> 0
D134: =IF(SUM(B120:D129)=0,0,1) -> 0 | I134: =IF(SUM(G120:I129)=0,0,1) -> 0 | N134: =IF(SUM(L120:N129)=0,0,1) -> 0
A136: Taille | B136: D4 | C136: d2 | D136: c4 | E136: A2 | I136: Nb d'opérateur= | K136: =SUM(D134,I134,N134) -> 0
A137: 2 | B137: 3.267 | C137: 1.12838 | D137: 0.7979 | E137: 1.88 | I137: Nb de mesures = | K137: =SUM(B131:D131) -> 0
A138: 3 | B138: 2.574 | C138: 1.69257 | D138: 0.8862 | E138: 1.023 | I138: Nb de pièces = | K138: =B132 -> 0
A140: D4 | B140: =VLOOKUP(K137,A136:B138,2) ->  | I140: Rp | J140: =MAX(Q12:Q21)-MIN(Q12:Q21) -> 0
A141: d2repe | B141: =VLOOKUP(K137,A136:C138,3) ->  | D141: d2* repe | E141: =IF(K138*K136>20,B141,VLOOKUP(K137,L148:AI153,K138*K136+1)) ->  | I141: Rxb | J141: =MAX(E22,J22,O22)-MIN(E22,J22,O22) -> 0
A142: d2repr | B142: =VLOOKUP(K136,A136:C138,3) ->  | D142: d2*repro | E142: =VLOOKUP(K136,L148:AI153,2) -> 
A143: c4 | B143: =VLOOKUP(K136,A136:D138,4) ->  | D143: d2*pièce | E143: =VLOOKUP(K138,L148:AI167,2) -> 
A144: A2 | B144: =VLOOKUP(K136,A136:E138,5) -> 
M145: d2*
B147: LSC | C147: LIC | D147: moyennes | G147: LSC | M147: Nombre de sous-groupes = Nombre de pièces x Nombre d'opérateurs
A148: =F$24 ->  | B148: =E$76 ->  | C148: =G$76 ->  | D148: =IF(Q12="",#N/A,Q12) ->  | G148: =B$76 ->  | M148: 1 | N148: 2 | O148: 3 | P148: 4 | Q148: 5 | R148: 6 | S148: 7 | T148: 8 | U148: 9 | V148: 10 | W148: 11 | X148: 12 | Y148: 13 | Z148: 14 | AA148: 15 | AB148: 16 | AC148: 17 | AD148: 18 | AE148: 19 | AF148: 20 | AI148: >20
K149: =1/M149 -> 0.7071085624 | L149: 2 | M149: 1.41421 | N149: 1.27931 | O149: 1.23105 | P149: 1.20621 | Q149: 1.19105 | R149: 1.18083 | S149: 1.17348 | T149: 1.16794 | U149: 1.16361 | V149: 1.16014 | W149: 1.15729 | X149: 1.1549 | Y149: 1.15289 | Z149: 1.15115 | AA149: 1.14965 | AB149: 1.14833 | AC149: 1.14717 | AD149: 1.14613 | AE149: 1.1452 | AF149: 1.14437 | AI149: 1.12838 | AJ149: =1/AI149 -> 0.8862262713
K150: =1/M150 -> 0.5231356752 | L150: 3 | M150: 1.91155 | N150: 1.80538 | O150: 1.76858 | P150: 1.74989 | Q150: 1.73857 | R150: 1.73099 | S150: 1.72555 | T150: 1.72147 | U150: 1.71828 | V150: 1.71573 | W150: 1.71363 | X150: 1.71189 | Y150: 1.71041 | Z150: 1.70914 | AA150: 1.70804 | AB150: 1.70708 | AC150: 1.70623 | AD150: 1.70547 | AE150: 1.7048 | AF150: 1.70419 | AI150: 1.69257 | AJ150: =1/AI150 -> 0.5908175142
K151: 0.4466538924 | L151: 4 | M151: 2.23887 | N151: 2.15069 | O151: 2.12049 | P151: 2.10522 | Q151: 2.09601 | R151: 2.0985 | S151: 2.08543 | T151: 2.08212 | U151: 2.07953 | V151: 2.07746 | W151: 2.07577 | X151: 2.07436 | Y151: 2.07316 | Z151: 2.07213 | AA151: 2.07125 | AB151: 2.07047 | AC151: 2.06678 | AD151: 2.06917 | AE151: 2.06862 | AF151: 2.06813 | AI151: 2.05875 | AJ151: 0.4857316333
K152: 0.4030242943 | L152: 5 | M152: 2.48124 | N152: 2.400484 | O152: 2.37883 | P152: 2.36571 | Q152: 2.35781 | R152: 2.35253 | S152: 2.34875 | T152: 2.34591 | U152: 2.3437 | V152: 2.34192 | W152: 2.34048 | X152: 2.33927 | Y152: 2.33824 | Z152: 2.33737 | AA152: 2.33661 | AB152: 2.33594 | AC152: 2.35535 | AD152: 2.33483 | AE152: 2.33436 | AF152: 2.33394 | AI152: 2.32593 | AJ152: 0.4299355527
K153: 0.3741772777 | L153: 6 | M153: 2.67253 | N153: 2.60438 | O153: 2.58127 | P153: 2.56964 | Q153: 2.56263 | R153: 2.55795 | S153: 2.5546 | T153: 2.55208 | U153: 2.55013 | V153: 2.54856 | W153: 2.54728 | X153: 2.54621 | Y153: 2.5423 | Z153: 2.54452 | AA153: 2.54385 | AB153: 2.54326 | AC153: 2.54274 | AD153: 2.54228 | AE153: 2.54187 | AF153: 2.54149 | AI153: 2.53441 | AJ153: 0.3945691502
K154: 0.3533806157 | L154: 7 | M154: 2.82981 | N154: 70 | O154: 70 | P154: 70 | Q154: 70 | R154: 70 | S154: 70 | T154: 70 | U154: 70 | V154: 70 | W154: 70 | X154: 70 | Y154: 70 | Z154: 70 | AA154: 70 | AB154: 70 | AC154: 70 | AD154: 70 | AE154: 70 | AF154: 70 | AI154: 2.70436 | AJ154: 0.369773255
K155: 0.3375094503 | L155: 8 | M155: 2.96288 | N155: 80 | O155: 80 | P155: 80 | Q155: 80 | R155: 80 | S155: 80 | T155: 80 | U155: 80 | V155: 80 | W155: 80 | X155: 80 | Y155: 80 | Z155: 80 | AA155: 80 | AB155: 80 | AC155: 80 | AD155: 80 | AE155: 80 | AF155: 80 | AI155: 2.8472 | AJ155: 0.3512222534
K156: 0.324892623 | L156: 9 | M156: 3.07794 | N156: 90 | O156: 90 | P156: 90 | Q156: 90 | R156: 90 | S156: 90 | T156: 90 | U156: 90 | V156: 90 | W156: 90 | X156: 90 | Y156: 90 | Z156: 90 | AA156: 90 | AB156: 90 | AC156: 90 | AD156: 90 | AE156: 90 | AF156: 90 | AI156: 2.97003 | AJ156: 0.3366969357
K157: 0.3145593809 | L157: 10 | M157: 3.17905 | N157: 100 | O157: 100 | P157: 100 | Q157: 100 | R157: 100 | S157: 100 | T157: 100 | U157: 100 | V157: 100 | W157: 100 | X157: 100 | Y157: 100 | Z157: 100 | AA157: 100 | AB157: 100 | AC157: 100 | AD157: 100 | AE157: 100 | AF157: 100 | AI157: 3.07751 | AJ157: 0.3249380181
K158: 0.3058955244 | L158: 11 | M158: 3.26909 | N158: 110 | O158: 110 | P158: 110 | Q158: 110 | R158: 110 | S158: 110 | T158: 110 | U158: 110 | V158: 110 | W158: 110 | X158: 110 | Y158: 110 | Z158: 110 | AA158: 110 | AB158: 110 | AC158: 110 | AD158: 110 | AE158: 110 | AF158: 110 | AI158: 3.17287 | AJ158: 0.3151720682
K159: 0.2984932063 | L159: 12 | M159: 3.35016 | AI159: 3.25846 | AJ159: 0.3068934405
A160: Graphique des étendues | K160: 0.2920748413 | L160: 13 | M160: 3.42378 | AI160: 3.33598 | AJ160: 0.299761989
K161: 0.2864377456 | L161: 14 | M161: 3.49116 | AI161: 3.40676 | AJ161: 0.2935340323
A162: =IF(F12="",#N/A,F12) ->  | B162: =IF(K12="",#N/A,K12) ->  | C162: =IF(P12="",#N/A,P12) ->  | K162: 0.2814261552 | L162: 15 | M162: 3.55333 | AI162: 3.47193 | AJ162: 0.2880242401
K163: 0.2769538401 | L163: 16 | M163: 3.61071 | AI163: 3.53198 | AJ163: 0.283127311
K164: 0.2729093777 | L164: 17 | M164: 3.66422 | AI164: 3.58788 | AJ164: 0.2787161221
K165: 0.2692340829 | L165: 18 | M165: 3.71424 | AI165: 3.64006 | AJ165: 0.2747207464
K166: 0.2658740076 | L166: 19 | M166: 3.76118 | AI166: 3.68896 | AJ166: 0.2710791117
K167: 0.2627865359 | L167: 20 | M167: 3.80537 | AI167: 3.735 | AJ167: 0.2677376171
L168: 21

Sheet R&R Attributs
A1: Cmc par R&R Charbonneau
B3: Moyen de mesure | J3: Désignation :
B4: Pièce mesurée | J4: Lot :
B5: Caractéristiques
B7: Opérateur 1
B8: Opérateur 2
B9: Opérateur 3
B10: Opérateur 4
B11: Opérateur 5
B13: =IF(E7="",B7,E7) -> Opérateur 1 | F13: =IF(E8="",B8,E8) -> Opérateur 2 | J13: =IF(E9="",B9,E9) -> Opérateur 3 | N13: =IF(E10="",B10,E10) -> Opérateur 4 | R13: =IF(E11="",B11,E11) -> Opérateur 5 | W13: EXPERT
A14: N° | B14: 1ère | C14: 2ème | D14: 3ème | E14: Répétabilité | F14: 1ère | G14: 2ème | H14: 3ème | I14: Répétabilité | J14: 1ère | K14: 2ème | L14: 3ème | M14: Répétabilité | N14: 1ère | O14: 2ème | P14: 3ème | Q14: Répétabilité | R14: 1ère | S14: 2ème | T14: 3ème | U14: Répétabilité | W14: Valeur | X14: Répétabilité | Y14: Repro | Z14: Repro
A15: pièce | B15: mesure | C15: mesure | D15: mesure | E15: =B13 -> Opérateur 1 | F15: mesure | G15: mesure | H15: mesure | I15: =F13 -> Opérateur 2 | J15: mesure | K15: mesure | L15: mesure | M15: =J13 -> Opérateur 3 | N15: mesure | O15: mesure | P15: mesure | Q15: =N13 -> Opérateur 4 | R15: mesure | S15: mesure | T15: mesure | U15: =R13 -> Opérateur 5 | W15: "Juste" | X15: Totale | Y15: sans expert | Z15: avec expert | AE15: Repro 1&2 | AF15: Repro1&3 | AG15: Repro1&4 | AH15: Repro1&5 | AI15: Repro 2&3 | AJ15: Repro 2&4 | AK15: Repro 2&5 | AL15: Repro 3&4 | AM15: Repro3&5 | AN15: Repro4&5 | AP15: 1 & expert | AQ15: 2 & expert | AR15: 3 & expert | AS15: 4 & expert | AT15: 5 & expert | AV15: 1 plus sévère | AW15: 1 moins sévère | AX15: 2. plus sévère | AY15: 2 moins sévère | AZ15: 3 plus sévère | BA15: 3 moins sévère | BB15: 4 plus sévère | BC15: 4 moins sévère | BD15: 5 plus sévère | BE15: 5 moins sévère
A16: 1 | B16: NC | C16: NC | E16: =IF(B16="","",IF(D16="",IF(B16=C16,1,0),IF(AND(B16=D16,B16=C16,C16=D16),1,0))) -> 1 | F16: NC | G16: NC | I16: =IF(F16="","",IF(H16="",IF(F16=G16,1,0),IF(AND(F16=H16,F16=H16,G16=H16),1,0))) -> 1 | J16: NC | K16: NC | M16: =IF(J16="","",IF(L16="",IF(J16=K16,1,0),IF(AND(J16=L16,J16=L16,K16=L16),1,0))) -> 1 | N16: NC | O16: NC | Q16: =IF(N16="","",IF(P16="",IF(N16=O16,1,0),IF(AND(N16=P16,N16=P16,O16=P16),1,0))) -> 1 | R16: NC | S16: NC | U16: =IF(R16="","",IF(T16="",IF(R16=S16,1,0),IF(AND(R16=T16,R16=T16,S16=T16),1,0))) -> 1 | W16: NC | X16: =IF(B16="","",IF(SUM(E16,I16,M16,Q16,U16)<>$D$72,0,1)) -> 1 | Y16: =IF(B16="","",IF(X16=0,1,IF(PRODUCT(AE16:AN16)=0,0,1))) -> 1 | Z16: =IF(W16="","",IF(B16="","",IF(OR(Y16=0,X16=0),1,IF(B16<>W16,0,1)))) -> 1 | AE16: =IF(OR(B16="",F16=""),"",IF(B16<>F16,0,1)) -> 1 | AF16: =IF(OR(B16="",J16=""),"",IF(B16<>J16,0,1)) -> 1 | AG16: =IF(OR(B16="",N16=""),"",IF(B16<>N16,0,1)) -> 1 | AH16: =IF(OR(B16="",R16=""),"",IF(B16<>R16,0,1)) -> 1 | AI16: =IF(OR(F16="",J16=""),"",IF(F16<>J16,0,1)) -> 1 | AJ16: =IF(OR(F16="",N16=""),"",IF(F16<>N16,0,1)) -> 1 | AK16: =IF(OR(F16="",R16=""),"",IF(F16<>R16,0,1)) -> 1 | AL16: =IF(OR(J16="",N16=""),"",IF(J16<>N16,0,1)) -> 1 | AM16: =IF(OR(J16="",R16=""),"",IF(J16<>R16,0,1)) -> 1 | AN16: =IF(OR(N16="",R16=""),"",IF(N16<>R16,0,1)) -> 1 | AP16: =IF(B16="","",IF(E16=0,1,IF(B16<>$W16,0,1))) -> 1 | AQ16: =IF(F16="","",IF(I16=0,1,IF(F16<>$W16,0,1))) -> 1 | AR16: =IF(J16="","",IF(M16=0,1,IF(J16<>$W16,0,1))) -> 1 | AS16: =IF(N16="","",IF(Q16=0,1,IF(N16<>$W16,0,1))) -> 1 | AT16: =IF(R16="","",IF(U16=0,1,IF(R16<>$W16,0,1))) -> 1 | AV16: =IF(AP16=0,IF(W16="C",1,""),"") ->  | AW16: =IF(AP16=0,IF(W16="NC",1,""),"") ->  | AX16: =IF(AQ16=0,IF(W16="C",1,""),"") ->  | AY16: =IF(AQ16=0,IF(W16="NC",1,""),"") ->  | AZ16: =IF(AR16=0,IF(W16="C",1,""),"") ->  | BA16: =IF(AR16=0,IF(W16="NC",1,""),"") ->  | BB16: =IF(AS16=0,IF(W16="C",1,""),"") ->  | BC16: =IF(AS16=0,IF(W16="NC",1,""),"") ->  | BD16: =IF(AT16=0,IF(W16="C",1,""),"") ->  | BE16: =IF(AT16=0,IF(W16="NC",1,""),"") -> 
A17: 2 | B17: NC | C17: NC | E17: =IF(B17="","",IF(D17="",IF(B17=C17,1,0),IF(AND(B17=D17,B17=C17,C17=D17),1,0))) -> 1 | F17: NC | G17: NC | I17: =IF(F17="","",IF(H17="",IF(F17=G17,1,0),IF(AND(F17=H17,F17=H17,G17=H17),1,0))) -> 1 | J17: NC | K17: NC | M17: =IF(J17="","",IF(L17="",IF(J17=K17,1,0),IF(AND(J17=L17,J17=L17,K17=L17),1,0))) -> 1 | N17: NC | O17: NC | Q17: =IF(N17="","",IF(P17="",IF(N17=O17,1,0),IF(AND(N17=P17,N17=P17,O17=P17),1,0))) -> 1 | R17: NC | S17: NC | U17: =IF(R17="","",IF(T17="",IF(R17=S17,1,0),IF(AND(R17=T17,R17=T17,S17=T17),1,0))) -> 1 | W17: NC | X17: =IF(B17="","",IF(SUM(E17,I17,M17,Q17,U17)<>$D$72,0,1)) -> 1 | Y17: =IF(B17="","",IF(X17=0,1,IF(PRODUCT(AE17:AN17)=0,0,1))) -> 1 | Z17: =IF(W17="","",IF(B17="","",IF(OR(Y17=0,X17=0),1,IF(B17<>W17,0,1)))) -> 1 | AE17: =IF(OR(B17="",F17=""),"",IF(B17<>F17,0,1)) -> 1 | AF17: =IF(OR(B17="",J17=""),"",IF(B17<>J17,0,1)) -> 1 | AG17: =IF(OR(B17="",N17=""),"",IF(B17<>N17,0,1)) -> 1 | AH17: =IF(OR(B17="",R17=""),"",IF(B17<>R17,0,1)) -> 1 | AI17: =IF(OR(F17="",J17=""),"",IF(F17<>J17,0,1)) -> 1 | AJ17: =IF(OR(F17="",N17=""),"",IF(F17<>N17,0,1)) -> 1 | AK17: =IF(OR(F17="",R17=""),"",IF(F17<>R17,0,1)) -> 1 | AL17: =IF(OR(J17="",N17=""),"",IF(J17<>N17,0,1)) -> 1 | AM17: =IF(OR(J17="",R17=""),"",IF(J17<>R17,0,1)) -> 1 | AN17: =IF(OR(N17="",R17=""),"",IF(N17<>R17,0,1)) -> 1 | AP17: 1 | AQ17: =IF(F17="","",IF(I17=0,1,IF(F17<>$W17,0,1))) -> 1 | AR17: =IF(J17="","",IF(M17=0,1,IF(J17<>$W17,0,1))) -> 1 | AS17: =IF(N17="","",IF(Q17=0,1,IF(N17<>$W17,0,1))) -> 1 | AT17: =IF(R17="","",IF(U17=0,1,IF(R17<>$W17,0,1))) -> 1 | AV17: =IF(AP17=0,IF(W17="C",1,""),"") ->  | AW17: =IF(AP17=0,IF(W17="NC",1,""),"") ->  | AX17: =IF(AQ17=0,IF(W17="C",1,""),"") ->  | AY17: =IF(AQ17=0,IF(W17="NC",1,""),"") ->  | AZ17: =IF(AR17=0,IF(W17="C",1,""),"") ->  | BA17: =IF(AR17=0,IF(W17="NC",1,""),"") ->  | BB17: =IF(AS17=0,IF(W17="C",1,""),"") ->  | BC17: =IF(AS17=0,IF(W17="NC",1,""),"") ->  | BD17: =IF(AT17=0,IF(W17="C",1,""),"") ->  | BE17: =IF(AT17=0,IF(W17="NC",1,""),"") -> 
A18: 3 | B18: NC | C18: NC | E18: 1 | F18: C | G18: C | I18: 1 | J18: C | K18: C | M18: 1 | N18: C | O18: C | Q18: 1 | R18: C | S18: C | U18: 1 | W18: NC | X18: =IF(B18="","",IF(SUM(E18,I18,M18,Q18,U18)<>$D$72,0,1)) -> 1 | Y18: 0 | Z18: 1 | AE18: 0 | AF18: 0 | AG18: 0 | AH18: 0 | AI18: 1 | AJ18: 1 | AK18: 1 | AL18: 1 | AM18: 1 | AN18: 1 | AP18: 1 | AQ18: 0 | AR18: 0 | AS18: 0 | AT18: 0 | AV18: =IF(AP18=0,IF(W18="C",1,""),"") ->  | AW18: =IF(AP18=0,IF(W18="NC",1,""),"") ->  | AX18: =IF(AQ18=0,IF(W18="C",1,""),"") ->  | AY18: =IF(AQ18=0,IF(W18="NC",1,""),"") -> 1 | AZ18: =IF(AR18=0,IF(W18="C",1,""),"") ->  | BA18: =IF(AR18=0,IF(W18="NC",1,""),"") -> 1 | BC18: 1 | BE18: 1
A19: 4 | B19: NC | C19: NC | E19: 1 | F19: C | G19: C | I19: 1 | J19: NC | K19: NC | M19: 1 | N19: NC | O19: NC | Q19: 1 | R19: NC | S19: NC | U19: 1 | W19: NC | X19: =IF(B19="","",IF(SUM(E19,I19,M19,Q19,U19)<>$D$72,0,1)) -> 1 | Y19: 0 | Z19: 1 | AE19: 0 | AF19: 1 | AG19: 1 | AH19: 1 | AI19: 0 | AJ19: 0 | AK19: 0 | AL19: 1 | AM19: 1 | AN19: 1 | AP19: 1 | AQ19: 0 | AR19: 1 | AS19: 1 | AT19: 1 | AV19: =IF(AP19=0,IF(W19="C",1,""),"") ->  | AW19: =IF(AP19=0,IF(W19="NC",1,""),"") ->  | AX19: =IF(AQ19=0,IF(W19="C",1,""),"") ->  | AY19: =IF(AQ19=0,IF(W19="NC",1,""),"") -> 1 | AZ19: =IF(AR19=0,IF(W19="C",1,""),"") ->  | BA19: =IF(AR19=0,IF(W19="NC",1,""),"") -> 
A20: 5 | B20: NC | C20: NC | E20: 1 | F20: C | G20: C | I20: 1 | J20: C | K20: C | M20: 1 | N20: NC | O20: NC | Q20: 1 | R20: C | S20: C | U20: 1 | W20: C | X20: =IF(B20="","",IF(SUM(E20,I20,M20,Q20,U20)<>$D$72,0,1)) -> 1 | Y20: 0 | Z20: 1 | AE20: 0 | AF20: 0 | AG20: 1 | AH20: 0 | AI20: 1 | AJ20: 0 | AK20: 1 | AL20: 0 | AM20: 1 | AN20: 0 | AP20: 0 | AQ20: 1 | AR20: 1 | AS20: 0 | AT20: 1 | AV20: =IF(AP20=0,IF(W20="C",1,""),"") -> 1 | AW20: =IF(AP20=0,IF(W20="NC",1,""),"") ->  | AX20: =IF(AQ20=0,IF(W20="C",1,""),"") ->  | AY20: =IF(AQ20=0,IF(W20="NC",1,""),"") ->  | AZ20: =IF(AR20=0,IF(W20="C",1,""),"") ->  | BA20: =IF(AR20=0,IF(W20="NC",1,""),"") ->  | BB20: 1
A21: 6 | B21: NC | C21: NC | E21: 1 | F21: NC | G21: NC | I21: 1 | J21: C | K21: C | M21: 1 | N21: NC | O21: NC | Q21: 1 | R21: NC | S21: NC | U21: 1 | W21: NC | X21: =IF(B21="","",IF(SUM(E21,I21,M21,Q21,U21)<>$D$72,0,1)) -> 1 | Y21: 0 | Z21: =IF(W21="","",IF(B21="","",IF(OR(Y21=0,X21=0),1,IF(B21<>W21,0,1)))) -> 1 | AE21: 1 | AF21: 0 | AG21: 1 | AH21: 1 | AI21: 0 | AJ21: 1 | AK21: 1 | AL21: 0 | AM21: 0 | AN21: 1 | AP21: 1 | AQ21: =IF(F21="","",IF(I21=0,1,IF(F21<>$W21,0,1))) -> 1 | AR21: =IF(J21="","",IF(M21=0,1,IF(J21<>$W21,0,1))) -> 0 | AS21: 1 | AT21: 1 | AV21: =IF(AP21=0,IF(W21="C",1,""),"") ->  | AW21: =IF(AP21=0,IF(W21="NC",1,""),"") ->  | AX21: =IF(AQ21=0,IF(W21="C",1,""),"") ->  | AY21: =IF(AQ21=0,IF(W21="NC",1,""),"") ->  | AZ21: =IF(AR21=0,IF(W21="C",1,""),"") ->  | BA21: =IF(AR21=0,IF(W21="NC",1,""),"") -> 1
A22: 7 | B22: NC | C22: NC | E22: 1 | F22: C | G22: C | I22: 1 | J22: C | K22: C | M22: 1 | N22: C | O22: C | Q22: 1 | R22: NC | S22: NC | U22: 1 | W22: NC | X22: =IF(B22="","",IF(SUM(E22,I22,M22,Q22,U22)<>$D$72,0,1)) -> 1 | Y22: 0 | Z22: 1 | AE22: 0 | AF22: 0 | AG22: 0 | AH22: 1 | AI22: 1 | AJ22: 1 | AK22: 0 | AL22: 1 | AM22: 0 | AN22: 0 | AP22: 1 | AQ22: 0 | AR22: 0 | AS22: 0 | AT22: 1 | AV22: =IF(AP22=0,IF(W22="C",1,""),"") ->  | AW22: =IF(AP22=0,IF(W22="NC",1,""),"") ->  | AX22: =IF(AQ22=0,IF(W22="C",1,""),"") ->  | AY22: =IF(AQ22=0,IF(W22="NC",1,""),"") -> 1 | AZ22: =IF(AR22=0,IF(W22="C",1,""),"") ->  | BA22: =IF(AR22=0,IF(W22="NC",1,""),"") -> 1 | BC22: 1
A23: 8 | B23: C | C23: C | E23: 1 | F23: C | G23: C | I23: 1 | J23: C | K23: C | M23: 1 | N23: C | O23: C | Q23: 1 | R23: NC | S23: NC | U23: 1 | W23: NC | X23: =IF(B23="","",IF(SUM(E23,I23,M23,Q23,U23)<>$D$72,0,1)) -> 1 | Y23: 0 | Z23: 1 | AE23: 1 | AF23: 1 | AG23: 1 | AH23: 0 | AI23: 1 | AJ23: 1 | AK23: 0 | AL23: 1 | AM23: 0 | AN23: 0 | AP23: 0 | AQ23: 0 | AR23: 0 | AS23: 0 | AT23: 1 | AV23: =IF(AP23=0,IF(W23="C",1,""),"") ->  | AW23: =IF(AP23=0,IF(W23="NC",1,""),"") -> 1 | AX23: =IF(AQ23=0,IF(W23="C",1,""),"") ->  | AY23: =IF(AQ23=0,IF(W23="NC",1,""),"") -> 1 | AZ23: =IF(AR23=0,IF(W23="C",1,""),"") ->  | BA23: =IF(AR23=0,IF(W23="NC",1,""),"") -> 1 | BC23: 1
A24: 9 | B24: NC | C24: NC | E24: 1 | F24: NC | G24: NC | I24: 1 | J24: NC | K24: NC | M24: 1 | N24: NC | O24: NC | Q24: 1 | R24: NC | S24: NC | U24: 1 | W24: NC | X24: =IF(B24="","",IF(SUM(E24,I24,M24,Q24,U24)<>$D$72,0,1)) -> 1 | Y24: 1 | Z24: 1 | AE24: 1 | AF24: 1 | AG24: 1 | AH24: 1 | AI24: 1 | AJ24: 1 | AK24: 1 | AL24: 1 | AM24: 1 | AN24: 1 | AP24: 1 | AQ24: 1 | AR24: 1 | AS24: 1 | AT24: 1 | AV24: =IF(AP24=0,IF(W24="C",1,""),"") ->  | AW24: =IF(AP24=0,IF(W24="NC",1,""),"") ->  | AX24: =IF(AQ24=0,IF(W24="C",1,""),"") ->  | AY24: =IF(AQ24=0,IF(W24="NC",1,""),"") ->  | AZ24: =IF(AR24=0,IF(W24="C",1,""),"") ->  | BA24: =IF(AR24=0,IF(W24="NC",1,""),"") -> 
A25: 10 | B25: NC | C25: NC | E25: 1 | F25: NC | G25: NC | I25: 1 | J25: C | K25: C | M25: 1 | N25: NC | O25: NC | Q25: 1 | R25: C | S25: C | U25: 1 | W25: NC | X25: =IF(B25="","",IF(SUM(E25,I25,M25,Q25,U25)<>$D$72,0,1)) -> 1 | Y25: 0 | Z25: 1 | AE25: 1 | AF25: 0 | AG25: 1 | AH25: 0 | AI25: 0 | AJ25: 1 | AK25: 0 | AL25: 0 | AM25: 1 | AN25: 0 | AP25: 1 | AQ25: 1 | AR25: 0 | AS25: 1 | AT25: 0 | AV25: =IF(AP25=0,IF(W25="C",1,""),"") ->  | AW25: =IF(AP25=0,IF(W25="NC",1,""),"") ->  | AX25: =IF(AQ25=0,IF(W25="C",1,""),"") ->  | AY25: =IF(AQ25=0,IF(W25="NC",1,""),"") ->  | AZ25: =IF(AR25=0,IF(W25="C",1,""),"") ->  | BA25: =IF(AR25=0,IF(W25="NC",1,""),"") -> 1 | BE25: 1
A26: 11 | B26: NC | C26: NC | E26: 1 | F26: NC | G26: NC | I26: 1 | J26: NC | K26: NC | M26: 1 | N26: C | O26: C | Q26: 1 | R26: NC | S26: NC | U26: 1 | W26: NC | X26: =IF(B26="","",IF(SUM(E26,I26,M26,Q26,U26)<>$D$72,0,1)) -> 1 | Y26: 0 | Z26: 1 | AE26: 1 | AF26: 1 | AG26: 0 | AH26: 1 | AI26: 1 | AJ26: 0 | AK26: 1 | AL26: 0 | AM26: 1 | AN26: 0 | AP26: 1 | AQ26: 1 | AR26: 1 | AS26: 0 | AT26: 1 | AV26: =IF(AP26=0,IF(W26="C",1,""),"") ->  | AW26: =IF(AP26=0,IF(W26="NC",1,""),"") ->  | AX26: =IF(AQ26=0,IF(W26="C",1,""),"") ->  | AY26: =IF(AQ26=0,IF(W26="NC",1,""),"") ->  | AZ26: =IF(AR26=0,IF(W26="C",1,""),"") ->  | BA26: =IF(AR26=0,IF(W26="NC",1,""),"") ->  | BC26: 1
A27: 12 | B27: C | C27: C | E27: 1 | F27: C | G27: C | I27: 1 | J27: C | K27: C | M27: 1 | N27: C | O27: C | Q27: 1 | R27: C | S27: C | U27: 1 | W27: C | X27: =IF(B27="","",IF(SUM(E27,I27,M27,Q27,U27)<>$D$72,0,1)) -> 1 | Y27: 1 | Z27: 1 | AE27: 1 | AF27: 1 | AG27: 1 | AH27: 1 | AI27: 1 | AJ27: 1 | AK27: 1 | AL27: 1 | AM27: 1 | AN27: 1 | AP27: 1 | AQ27: 1 | AR27: 1 | AS27: 1 | AT27: 1 | AV27: =IF(AP27=0,IF(W27="C",1,""),"") ->  | AW27: =IF(AP27=0,IF(W27="NC",1,""),"") ->  | AX27: =IF(AQ27=0,IF(W27="C",1,""),"") ->  | AY27: =IF(AQ27=0,IF(W27="NC",1,""),"") ->  | AZ27: =IF(AR27=0,IF(W27="C",1,""),"") ->  | BA27: =IF(AR27=0,IF(W27="NC",1,""),"") -> 
A28: 13 | B28: NC | C28: NC | E28: 1 | F28: C | G28: C | I28: 1 | J28: C | K28: C | M28: 1 | N28: NC | O28: NC | Q28: 1 | R28: NC | S28: NC | U28: 1 | W28: NC | X28: =IF(B28="","",IF(SUM(E28,I28,M28,Q28,U28)<>$D$72,0,1)) -> 1 | Y28: 0 | Z28: 1 | AE28: 0 | AF28: 0 | AG28: 1 | AH28: 1 | AI28: 1 | AJ28: 0 | AK28: 0 | AL28: 0 | AM28: 0 | AN28: 1 | AP28: 1 | AQ28: 0 | AR28: 0 | AS28: 1 | AT28: 1 | AV28: =IF(AP28=0,IF(W28="C",1,""),"") ->  | AW28: =IF(AP28=0,IF(W28="NC",1,""),"") ->  | AX28: =IF(AQ28=0,IF(W28="C",1,""),"") ->  | AY28: =IF(AQ28=0,IF(W28="NC",1,""),"") -> 1 | AZ28: =IF(AR28=0,IF(W28="C",1,""),"") ->  | BA28: =IF(AR28=0,IF(W28="NC",1,""),"") -> 1
A29: 14 | B29: NC | C29: NC | E29: 1 | F29: NC | G29: NC | I29: 1 | J29: C | K29: C | M29: 1 | N29: NC | O29: NC | Q29: 1 | R29: NC | S29: NC | U29: 1 | W29: NC | X29: =IF(B29="","",IF(SUM(E29,I29,M29,Q29,U29)<>$D$72,0,1)) -> 1 | Y29: 0 | Z29: 1 | AE29: 1 | AF29: 0 | AG29: 1 | AH29: 1 | AI29: 0 | AJ29: 1 | AK29: 1 | AL29: 0 | AM29: 0 | AN29: 1 | AP29: 1 | AQ29: 1 | AR29: 0 | AS29: 1 | AT29: 1 | AV29: =IF(AP29=0,IF(W29="C",1,""),"") ->  | AW29: =IF(AP29=0,IF(W29="NC",1,""),"") ->  | AX29: =IF(AQ29=0,IF(W29="C",1,""),"") ->  | AY29: =IF(AQ29=0,IF(W29="NC",1,""),"") ->  | AZ29: =IF(AR29=0,IF(W29="C",1,""),"") ->  | BA29: =IF(AR29=0,IF(W29="NC",1,""),"") -> 1
A30: 15 | B30: C | C30: C | E30: 1 | F30: C | G30: C | I30: 1 | J30: NC | K30: NC | M30: 1 | N30: C | O30: C | Q30: 1 | R30: C | S30: C | U30: 1 | W30: C | X30: =IF(B30="","",IF(SUM(E30,I30,M30,Q30,U30)<>$D$72,0,1)) -> 1 | Y30: 0 | Z30: 1 | AE30: 1 | AF30: 0 | AG30: 1 | AH30: 1 | AI30: 0 | AJ30: 1 | AK30: 1 | AL30: 0 | AM30: 0 | AN30: 1 | AP30: 1 | AQ30: 1 | AR30: 0 | AS30: 1 | AT30: 1 | AV30: =IF(AP30=0,IF(W30="C",1,""),"") ->  | AW30: =IF(AP30=0,IF(W30="NC",1,""),"") ->  | AX30: =IF(AQ30=0,IF(W30="C",1,""),"") ->  | AY30: =IF(AQ30=0,IF(W30="NC",1,""),"") ->  | AZ30: =IF(AR30=0,IF(W30="C",1,""),"") -> 1 | BA30: =IF(AR30=0,IF(W30="NC",1,""),"") -> 
A31: 16 | B31: C | C31: C | E31: 1 | F31: NC | G31: NC | I31: 1 | J31: C | K31: C | M31: 1 | N31: NC | O31: NC | Q31: 1 | R31: NC | S31: NC | U31: 1 | W31: NC | X31: =IF(B31="","",IF(SUM(E31,I31,M31,Q31,U31)<>$D$72,0,1)) -> 1 | Y31: 0 | Z31: 1 | AE31: 0 | AF31: 1 | AG31: 0 | AH31: 0 | AI31: 0 | AJ31: 1 | AK31: 1 | AL31: 0 | AM31: 0 | AN31: 1 | AP31: 0 | AQ31: 1 | AR31: 0 | AS31: 1 | AT31: 1 | AV31: =IF(AP31=0,IF(W31="C",1,""),"") ->  | AW31: =IF(AP31=0,IF(W31="NC",1,""),"") -> 1 | AX31: =IF(AQ31=0,IF(W31="C",1,""),"") ->  | AY31: =IF(AQ31=0,IF(W31="NC",1,""),"") ->  | AZ31: =IF(AR31=0,IF(W31="C",1,""),"") ->  | BA31: =IF(AR31=0,IF(W31="NC",1,""),"") -> 1
A32: 17 | B32: NC | C32: NC | E32: 1 | F32: C | G32: C | I32: 1 | J32: NC | K32: NC | M32: 1 | N32: NC | O32: NC | Q32: 1 | R32: NC | S32: NC | U32: 1 | W32: NC | X32: =IF(B32="","",IF(SUM(E32,I32,M32,Q32,U32)<>$D$72,0,1)) -> 1 | Y32: 0 | Z32: 1 | AE32: 0 | AF32: 1 | AG32: 1 | AH32: 1 | AI32: 0 | AJ32: 0 | AK32: 0 | AL32: 1 | AM32: 1 | AN32: 1 | AP32: =IF(B32="","",IF(E32=0,1,IF(B32<>$W32,0,1))) -> 1 | AQ32: 0 | AR32: 1 | AS32: 1 | AT32: 1 | AV32: =IF(AP32=0,IF(W32="C",1,""),"") ->  | AW32: =IF(AP32=0,IF(W32="NC",1,""),"") ->  | AX32: =IF(AQ32=0,IF(W32="C",1,""),"") ->  | AY32: =IF(AQ32=0,IF(W32="NC",1,""),"") -> 1 | AZ32: =IF(AR32=0,IF(W32="C",1,""),"") ->  | BA32: =IF(AR32=0,IF(W32="NC",1,""),"") -> 
A33: 18 | B33: NC | C33: NC | E33: 1 | F33: NC | G33: NC | I33: 1 | J33: C | K33: C | M33: 1 | N33: NC | O33: NC | Q33: 1 | R33: NC | S33: NC | U33: 1 | W33: NC | X33: =IF(B33="","",IF(SUM(E33,I33,M33,Q33,U33)<>$D$72,0,1)) -> 1 | Y33: 0 | Z33: 1 | AE33: 1 | AF33: 0 | AG33: 1 | AH33: 1 | AI33: 0 | AJ33: 1 | AK33: 1 | AL33: 0 | AM33: 0 | AN33: 1 | AP33: 1 | AQ33: 1 | AR33: 0 | AS33: 1 | AT33: 1 | AV33: =IF(AP33=0,IF(W33="C",1,""),"") ->  | AW33: =IF(AP33=0,IF(W33="NC",1,""),"") ->  | AX33: =IF(AQ33=0,IF(W33="C",1,""),"") ->  | AY33: =IF(AQ33=0,IF(W33="NC",1,""),"") ->  | AZ33: =IF(AR33=0,IF(W33="C",1,""),"") ->  | BA33: =IF(AR33=0,IF(W33="NC",1,""),"") -> 1
A34: 19 | X34: =IF(B34="","",IF(SUM(E34,I34,M34,Q34,U34)<>$D$72,0,1)) ->  | AV34: =IF(AP34=0,IF(W34="C",1,""),"") ->  | AW34: =IF(AP34=0,IF(W34="NC",1,""),"") ->  | AX34: =IF(AQ34=0,IF(W34="C",1,""),"") ->  | AY34: =IF(AQ34=0,IF(W34="NC",1,""),"") ->  | AZ34: =IF(AR34=0,IF(W34="C",1,""),"") ->  | BA34: =IF(AR34=0,IF(W34="NC",1,""),"") -> 
A35: 20 | X35: =IF(B35="","",IF(SUM(E35,I35,M35,Q35,U35)<>$D$72,0,1)) ->  | AV35: =IF(AP35=0,IF(W35="C",1,""),"") ->  | AW35: =IF(AP35=0,IF(W35="NC",1,""),"") ->  | AX35: =IF(AQ35=0,IF(W35="C",1,""),"") ->  | AY35: =IF(AQ35=0,IF(W35="NC",1,""),"") ->  | AZ35: =IF(AR35=0,IF(W35="C",1,""),"") ->  | BA35: =IF(AR35=0,IF(W35="NC",1,""),"") -> 
A36: 21 | X36: =IF(B36="","",IF(SUM(E36,I36,M36,Q36,U36)<>$D$72,0,1)) ->  | AF36: =IF(OR(B36="",J36=""),"",IF(B36<>J36,0,1)) ->  | AV36: =IF(AP36=0,IF(W36="C",1,""),"") ->  | AW36: =IF(AP36=0,IF(W36="NC",1,""),"") ->  | AX36: =IF(AQ36=0,IF(W36="C",1,""),"") ->  | AY36: =IF(AQ36=0,IF(W36="NC",1,""),"") ->  | AZ36: =IF(AR36=0,IF(W36="C",1,""),"") ->  | BA36: =IF(AR36=0,IF(W36="NC",1,""),"") -> 
A37: 22 | X37: =IF(B37="","",IF(SUM(E37,I37,M37,Q37,U37)<>$D$72,0,1)) ->  | AF37: =IF(OR(B37="",J37=""),"",IF(B37<>J37,0,1)) ->  | AV37: =IF(AP37=0,IF(W37="C",1,""),"") ->  | AW37: =IF(AP37=0,IF(W37="NC",1,""),"") ->  | AX37: =IF(AQ37=0,IF(W37="C",1,""),"") ->  | AY37: =IF(AQ37=0,IF(W37="NC",1,""),"") ->  | AZ37: =IF(AR37=0,IF(W37="C",1,""),"") ->  | BA37: =IF(AR37=0,IF(W37="NC",1,""),"") -> 
A38: 23 | X38: =IF(B38="","",IF(SUM(E38,I38,M38,Q38,U38)<>$D$72,0,1)) ->  | AF38: =IF(OR(B38="",J38=""),"",IF(B38<>J38,0,1)) ->  | AV38: =IF(AP38=0,IF(W38="C",1,""),"") ->  | AW38: =IF(AP38=0,IF(W38="NC",1,""),"") ->  | AX38: =IF(AQ38=0,IF(W38="C",1,""),"") ->  | AY38: =IF(AQ38=0,IF(W38="NC",1,""),"") ->  | AZ38: =IF(AR38=0,IF(W38="C",1,""),"") ->  | BA38: =IF(AR38=0,IF(W38="NC",1,""),"") -> 
A39: 24 | X39: =IF(B39="","",IF(SUM(E39,I39,M39,Q39,U39)<>$D$72,0,1)) ->  | AV39: =IF(AP39=0,IF(W39="C",1,""),"") ->  | AW39: =IF(AP39=0,IF(W39="NC",1,""),"") ->  | AX39: =IF(AQ39=0,IF(W39="C",1,""),"") ->  | AY39: =IF(AQ39=0,IF(W39="NC",1,""),"") ->  | AZ39: =IF(AR39=0,IF(W39="C",1,""),"") ->  | BA39: =IF(AR39=0,IF(W39="NC",1,""),"") -> 
A40: 25 | X40: =IF(B40="","",IF(SUM(E40,I40,M40,Q40,U40)<>$D$72,0,1)) ->  | AV40: =IF(AP40=0,IF(W40="C",1,""),"") ->  | AW40: =IF(AP40=0,IF(W40="NC",1,""),"") ->  | AX40: =IF(AQ40=0,IF(W40="C",1,""),"") ->  | AY40: =IF(AQ40=0,IF(W40="NC",1,""),"") ->  | AZ40: =IF(AR40=0,IF(W40="C",1,""),"") ->  | BA40: =IF(AR40=0,IF(W40="NC",1,""),"") -> 
A41: 26 | X41: =IF(B41="","",IF(SUM(E41,I41,M41,Q41,U41)<>$D$72,0,1)) ->  | AV41: =IF(AP41=0,IF(W41="C",1,""),"") ->  | AW41: =IF(AP41=0,IF(W41="NC",1,""),"") ->  | AX41: =IF(AQ41=0,IF(W41="C",1,""),"") ->  | AY41: =IF(AQ41=0,IF(W41="NC",1,""),"") ->  | AZ41: =IF(AR41=0,IF(W41="C",1,""),"") ->  | BA41: =IF(AR41=0,IF(W41="NC",1,""),"") -> 
A42: 27 | X42: =IF(B42="","",IF(SUM(E42,I42,M42,Q42,U42)<>$D$72,0,1)) ->  | AV42: =IF(AP42=0,IF(W42="C",1,""),"") ->  | AW42: =IF(AP42=0,IF(W42="NC",1,""),"") ->  | AX42: =IF(AQ42=0,IF(W42="C",1,""),"") ->  | AY42: =IF(AQ42=0,IF(W42="NC",1,""),"") ->  | AZ42: =IF(AR42=0,IF(W42="C",1,""),"") ->  | BA42: =IF(AR42=0,IF(W42="NC",1,""),"") -> 
A43: 28 | X43: =IF(B43="","",IF(SUM(E43,I43,M43,Q43,U43)<>$D$72,0,1)) ->  | AV43: =IF(AP43=0,IF(W43="C",1,""),"") ->  | AW43: =IF(AP43=0,IF(W43="NC",1,""),"") ->  | AX43: =IF(AQ43=0,IF(W43="C",1,""),"") ->  | AY43: =IF(AQ43=0,IF(W43="NC",1,""),"") ->  | AZ43: =IF(AR43=0,IF(W43="C",1,""),"") ->  | BA43: =IF(AR43=0,IF(W43="NC",1,""),"") -> 
A44: 29 | X44: =IF(B44="","",IF(SUM(E44,I44,M44,Q44,U44)<>$D$72,0,1)) ->  | AV44: =IF(AP44=0,IF(W44="C",1,""),"") ->  | AW44: =IF(AP44=0,IF(W44="NC",1,""),"") ->  | AX44: =IF(AQ44=0,IF(W44="C",1,""),"") ->  | AY44: =IF(AQ44=0,IF(W44="NC",1,""),"") ->  | AZ44: =IF(AR44=0,IF(W44="C",1,""),"") ->  | BA44: =IF(AR44=0,IF(W44="NC",1,""),"") -> 
A45: 30 | X45: =IF(B45="","",IF(SUM(E45,I45,M45,Q45,U45)<>$D$72,0,1)) ->  | AV45: =IF(AP45=0,IF(W45="C",1,""),"") ->  | AW45: =IF(AP45=0,IF(W45="NC",1,""),"") ->  | AX45: =IF(AQ45=0,IF(W45="C",1,""),"") ->  | AY45: =IF(AQ45=0,IF(W45="NC",1,""),"") ->  | AZ45: =IF(AR45=0,IF(W45="C",1,""),"") ->  | BA45: =IF(AR45=0,IF(W45="NC",1,""),"") -> 
A46: 31 | X46: =IF(B46="","",IF(SUM(E46,I46,M46,Q46,U46)<>$D$72,0,1)) ->  | AV46: =IF(AP46=0,IF(W46="C",1,""),"") ->  | AW46: =IF(AP46=0,IF(W46="NC",1,""),"") ->  | AX46: =IF(AQ46=0,IF(W46="C",1,""),"") ->  | AY46: =IF(AQ46=0,IF(W46="NC",1,""),"") ->  | AZ46: =IF(AR46=0,IF(W46="C",1,""),"") ->  | BA46: =IF(AR46=0,IF(W46="NC",1,""),"") -> 
A47: 32 | X47: =IF(B47="","",IF(SUM(E47,I47,M47,Q47,U47)<>$D$72,0,1)) ->  | AV47: =IF(AP47=0,IF(W47="C",1,""),"") ->  | AW47: =IF(AP47=0,IF(W47="NC",1,""),"") ->  | AX47: =IF(AQ47=0,IF(W47="C",1,""),"") ->  | AY47: =IF(AQ47=0,IF(W47="NC",1,""),"") ->  | AZ47: =IF(AR47=0,IF(W47="C",1,""),"") ->  | BA47: =IF(AR47=0,IF(W47="NC",1,""),"") -> 
A48: 33 | X48: =IF(B48="","",IF(SUM(E48,I48,M48,Q48,U48)<>$D$72,0,1)) ->  | AV48: =IF(AP48=0,IF(W48="C",1,""),"") ->  | AW48: =IF(AP48=0,IF(W48="NC",1,""),"") ->  | AX48: =IF(AQ48=0,IF(W48="C",1,""),"") ->  | AY48: =IF(AQ48=0,IF(W48="NC",1,""),"") ->  | AZ48: =IF(AR48=0,IF(W48="C",1,""),"") ->  | BA48: =IF(AR48=0,IF(W48="NC",1,""),"") -> 
A49: 34 | X49: =IF(B49="","",IF(SUM(E49,I49,M49,Q49,U49)<>$D$72,0,1)) ->  | AV49: =IF(AP49=0,IF(W49="C",1,""),"") ->  | AW49: =IF(AP49=0,IF(W49="NC",1,""),"") ->  | AX49: =IF(AQ49=0,IF(W49="C",1,""),"") ->  | AY49: =IF(AQ49=0,IF(W49="NC",1,""),"") ->  | AZ49: =IF(AR49=0,IF(W49="C",1,""),"") ->  | BA49: =IF(AR49=0,IF(W49="NC",1,""),"") -> 
A50: 35 | X50: =IF(B50="","",IF(SUM(E50,I50,M50,Q50,U50)<>$D$72,0,1)) ->  | AV50: =IF(AP50=0,IF(W50="C",1,""),"") ->  | AW50: =IF(AP50=0,IF(W50="NC",1,""),"") ->  | AX50: =IF(AQ50=0,IF(W50="C",1,""),"") ->  | AY50: =IF(AQ50=0,IF(W50="NC",1,""),"") ->  | AZ50: =IF(AR50=0,IF(W50="C",1,""),"") ->  | BA50: =IF(AR50=0,IF(W50="NC",1,""),"") -> 
A51: 36 | X51: =IF(B51="","",IF(SUM(E51,I51,M51,Q51,U51)<>$D$72,0,1)) ->  | AV51: =IF(AP51=0,IF(W51="C",1,""),"") ->  | AW51: =IF(AP51=0,IF(W51="NC",1,""),"") ->  | AX51: =IF(AQ51=0,IF(W51="C",1,""),"") ->  | AY51: =IF(AQ51=0,IF(W51="NC",1,""),"") ->  | AZ51: =IF(AR51=0,IF(W51="C",1,""),"") ->  | BA51: =IF(AR51=0,IF(W51="NC",1,""),"") -> 
A52: 37 | X52: =IF(B52="","",IF(SUM(E52,I52,M52,Q52,U52)<>$D$72,0,1)) ->  | AV52: =IF(AP52=0,IF(W52="C",1,""),"") ->  | AW52: =IF(AP52=0,IF(W52="NC",1,""),"") ->  | AX52: =IF(AQ52=0,IF(W52="C",1,""),"") ->  | AY52: =IF(AQ52=0,IF(W52="NC",1,""),"") ->  | AZ52: =IF(AR52=0,IF(W52="C",1,""),"") ->  | BA52: =IF(AR52=0,IF(W52="NC",1,""),"") -> 
A53: 38 | X53: =IF(B53="","",IF(SUM(E53,I53,M53,Q53,U53)<>$D$72,0,1)) ->  | AV53: =IF(AP53=0,IF(W53="C",1,""),"") ->  | AW53: =IF(AP53=0,IF(W53="NC",1,""),"") ->  | AX53: =IF(AQ53=0,IF(W53="C",1,""),"") ->  | AY53: =IF(AQ53=0,IF(W53="NC",1,""),"") ->  | AZ53: =IF(AR53=0,IF(W53="C",1,""),"") ->  | BA53: =IF(AR53=0,IF(W53="NC",1,""),"") -> 
A54: 39 | X54: =IF(B54="","",IF(SUM(E54,I54,M54,Q54,U54)<>$D$72,0,1)) ->  | AV54: =IF(AP54=0,IF(W54="C",1,""),"") ->  | AW54: =IF(AP54=0,IF(W54="NC",1,""),"") ->  | AX54: =IF(AQ54=0,IF(W54="C",1,""),"") ->  | AY54: =IF(AQ54=0,IF(W54="NC",1,""),"") ->  | AZ54: =IF(AR54=0,IF(W54="C",1,""),"") ->  | BA54: =IF(AR54=0,IF(W54="NC",1,""),"") -> 
A55: 40 | X55: =IF(B55="","",IF(SUM(E55,I55,M55,Q55,U55)<>$D$72,0,1)) ->  | AV55: =IF(AP55=0,IF(W55="C",1,""),"") ->  | AW55: =IF(AP55=0,IF(W55="NC",1,""),"") ->  | AX55: =IF(AQ55=0,IF(W55="C",1,""),"") ->  | AY55: =IF(AQ55=0,IF(W55="NC",1,""),"") ->  | AZ55: =IF(AR55=0,IF(W55="C",1,""),"") ->  | BA55: =IF(AR55=0,IF(W55="NC",1,""),"") -> 
A56: 41 | X56: =IF(B56="","",IF(SUM(E56,I56,M56,Q56,U56)<>$D$72,0,1)) ->  | AV56: =IF(AP56=0,IF(W56="C",1,""),"") ->  | AW56: =IF(AP56=0,IF(W56="NC",1,""),"") ->  | AX56: =IF(AQ56=0,IF(W56="C",1,""),"") ->  | AY56: =IF(AQ56=0,IF(W56="NC",1,""),"") ->  | AZ56: =IF(AR56=0,IF(W56="C",1,""),"") ->  | BA56: =IF(AR56=0,IF(W56="NC",1,""),"") -> 
A57: 42 | X57: =IF(B57="","",IF(SUM(E57,I57,M57,Q57,U57)<>$D$72,0,1)) ->  | AV57: =IF(AP57=0,IF(W57="C",1,""),"") ->  | AW57: =IF(AP57=0,IF(W57="NC",1,""),"") ->  | AX57: =IF(AQ57=0,IF(W57="C",1,""),"") ->  | AY57: =IF(AQ57=0,IF(W57="NC",1,""),"") ->  | AZ57: =IF(AR57=0,IF(W57="C",1,""),"") ->  | BA57: =IF(AR57=0,IF(W57="NC",1,""),"") -> 
A58: 43 | X58: =IF(B58="","",IF(SUM(E58,I58,M58,Q58,U58)<>$D$72,0,1)) ->  | AV58: =IF(AP58=0,IF(W58="C",1,""),"") ->  | AW58: =IF(AP58=0,IF(W58="NC",1,""),"") ->  | AX58: =IF(AQ58=0,IF(W58="C",1,""),"") ->  | AY58: =IF(AQ58=0,IF(W58="NC",1,""),"") ->  | AZ58: =IF(AR58=0,IF(W58="C",1,""),"") ->  | BA58: =IF(AR58=0,IF(W58="NC",1,""),"") -> 
A59: 44 | X59: =IF(B59="","",IF(SUM(E59,I59,M59,Q59,U59)<>$D$72,0,1)) ->  | AV59: =IF(AP59=0,IF(W59="C",1,""),"") ->  | AW59: =IF(AP59=0,IF(W59="NC",1,""),"") ->  | AX59: =IF(AQ59=0,IF(W59="C",1,""),"") ->  | AY59: =IF(AQ59=0,IF(W59="NC",1,""),"") ->  | AZ59: =IF(AR59=0,IF(W59="C",1,""),"") ->  | BA59: =IF(AR59=0,IF(W59="NC",1,""),"") -> 
A60: 45 | X60: =IF(B60="","",IF(SUM(E60,I60,M60,Q60,U60)<>$D$72,0,1)) ->  | AV60: =IF(AP60=0,IF(W60="C",1,""),"") ->  | AW60: =IF(AP60=0,IF(W60="NC",1,""),"") ->  | AX60: =IF(AQ60=0,IF(W60="C",1,""),"") ->  | AY60: =IF(AQ60=0,IF(W60="NC",1,""),"") ->  | AZ60: =IF(AR60=0,IF(W60="C",1,""),"") ->  | BA60: =IF(AR60=0,IF(W60="NC",1,""),"") -> 
A61: 46 | X61: =IF(B61="","",IF(SUM(E61,I61,M61,Q61,U61)<>$D$72,0,1)) ->  | AV61: =IF(AP61=0,IF(W61="C",1,""),"") ->  | AW61: =IF(AP61=0,IF(W61="NC",1,""),"") ->  | AX61: =IF(AQ61=0,IF(W61="C",1,""),"") ->  | AY61: =IF(AQ61=0,IF(W61="NC",1,""),"") ->  | AZ61: =IF(AR61=0,IF(W61="C",1,""),"") ->  | BA61: =IF(AR61=0,IF(W61="NC",1,""),"") -> 
A62: 47 | X62: =IF(B62="","",IF(SUM(E62,I62,M62,Q62,U62)<>$D$72,0,1)) ->  | AV62: =IF(AP62=0,IF(W62="C",1,""),"") ->  | AW62: =IF(AP62=0,IF(W62="NC",1,""),"") ->  | AX62: =IF(AQ62=0,IF(W62="C",1,""),"") ->  | AY62: =IF(AQ62=0,IF(W62="NC",1,""),"") ->  | AZ62: =IF(AR62=0,IF(W62="C",1,""),"") ->  | BA62: =IF(AR62=0,IF(W62="NC",1,""),"") -> 
A63: 48 | X63: =IF(B63="","",IF(SUM(E63,I63,M63,Q63,U63)<>$D$72,0,1)) ->  | AV63: =IF(AP63=0,IF(W63="C",1,""),"") ->  | AW63: =IF(AP63=0,IF(W63="NC",1,""),"") ->  | AX63: =IF(AQ63=0,IF(W63="C",1,""),"") ->  | AY63: =IF(AQ63=0,IF(W63="NC",1,""),"") ->  | AZ63: =IF(AR63=0,IF(W63="C",1,""),"") ->  | BA63: =IF(AR63=0,IF(W63="NC",1,""),"") -> 
A64: 49 | X64: =IF(B64="","",IF(SUM(E64,I64,M64,Q64,U64)<>$D$72,0,1)) ->  | AV64: =IF(AP64=0,IF(W64="C",1,""),"") ->  | AW64: =IF(AP64=0,IF(W64="NC",1,""),"") ->  | AX64: =IF(AQ64=0,IF(W64="C",1,""),"") ->  | AY64: =IF(AQ64=0,IF(W64="NC",1,""),"") ->  | AZ64: =IF(AR64=0,IF(W64="C",1,""),"") ->  | BA64: =IF(AR64=0,IF(W64="NC",1,""),"") -> 
A65: 50 | X65: =IF(B65="","",IF(SUM(E65,I65,M65,Q65,U65)<>$D$72,0,1)) ->  | AV65: =IF(AP65=0,IF(W65="C",1,""),"") ->  | AW65: =IF(AP65=0,IF(W65="NC",1,""),"") ->  | AX65: =IF(AQ65=0,IF(W65="C",1,""),"") ->  | AY65: =IF(AQ65=0,IF(W65="NC",1,""),"") ->  | AZ65: =IF(AR65=0,IF(W65="C",1,""),"") ->  | BA65: =IF(AR65=0,IF(W65="NC",1,""),"") -> 
B66: =$A$65-COUNTBLANK(B16:B65) -> 18 | C66: =$A$65-COUNTBLANK(C16:C65) -> 18 | D66: =$A$65-COUNTBLANK(D16:D65) -> 0 | E66: =SUM(E16:E65) -> 18 | F66: =$A$65-COUNTBLANK(F16:F65) -> 18 | G66: =$A$65-COUNTBLANK(G16:G65) -> 18 | H66: =$A$65-COUNTBLANK(H16:H65) -> 0 | I66: =SUM(I16:I65) -> 18 | J66: =$A$65-COUNTBLANK(J16:J65) -> 18 | K66: =$A$65-COUNTBLANK(K16:K65) -> 18 | L66: =$A$65-COUNTBLANK(L16:L65) -> 0 | M66: =SUM(M16:M65) -> 18 | N66: =$A$65-COUNTBLANK(N16:N65) -> 18 | O66: =$A$65-COUNTBLANK(O16:O65) -> 18 | P66: =$A$65-COUNTBLANK(P16:P65) -> 0 | Q66: =SUM(Q16:Q65) -> 18 | R66: =$A$65-COUNTBLANK(R16:R65) -> 18 | S66: =$A$65-COUNTBLANK(S16:S65) -> 18 | T66: =$A$65-COUNTBLANK(T16:T65) -> 0 | U66: =SUM(U16:U65) -> 18 | W66: =$A$65-COUNTBLANK(W16:W65) -> 18 | X66: =$B$66-SUM(X16:X65) -> 0 | Y66: =$B$66-SUM(Y16:Y65) -> 14 | Z66: 0 | AE66: =$B$66-SUM(AE16:AE65) -> 7 | AF66: =$B$66-SUM(AF16:AF65) -> 9 | AG66: =$B$66-SUM(AG16:AG65) -> 4 | AH66: =$B$66-SUM(AH16:AH65) -> 5 | AI66: 8 | AJ66: =$B$66-SUM(AJ16:AJ65) -> 5 | AK66: 6 | AL66: =$B$66-SUM(AL16:AL65) -> 9 | AM66: 8 | AN66: =$B$66-SUM(AN16:AN65) -> 5 | AP66: =$B$66-SUM(AP16:AP65) -> 3 | AQ66: =$B$66-SUM(AQ16:AQ65) -> 6 | AR66: =$B$66-SUM(AR16:AR65) -> 10 | AS66: =$B$66-SUM(AS16:AS65) -> 5 | AT66: =$B$66-SUM(AT16:AT65) -> 2 | AV66: =SUM(AV16:AV65) -> 1 | AW66: 2 | AX66: 0 | AY66: 6 | AZ66: 1 | BA66: 9 | BB66: 1 | BC66: 4 | BD66: 0 | BE66: 2
A69: messages | D69: =IF(J116=0,"","Les opérateurs doivent effectuer le même nombre de série de mesures") -> 
D70: =IF(B119=0,"","Chaque opérateur doit contrôler le même nombre de pièces, le même nombre de fois") -> 
A72: Nombre d'opérateurs : | D72: =SUM(E118:I118) -> 5
V74: =B13 -> Opérateur 1 | W74: =F13 -> Opérateur 2 | X74: =J13 -> Opérateur 3 | Y74: =N13 -> Opérateur 4 | Z74: =R13 -> Opérateur 5
V75: =E7 -> 0 | W75: =E8 -> 0 | X75: =E9 -> 0 | Y75: =F9 -> 0 | Z75: =G9 -> 0
R76: Total inspecté | V76: =B66 -> 18 | W76: =F66 -> 18 | X76: =J66 -> 18 | Y76: =N66 -> 18 | Z76: =R66 -> 18
D77: Entre opérateurs | F77: Avec l'expert | R77: Problèmes répétabilité | V77: =V76-E66 -> 0 | W77: =W76-I66 -> 0 | X77: =X76-M66 -> 0 | Y77: =Y76-Q66 -> 0 | Z77: =Z76-U66 -> 0
A78: Total inspecté | D78: =B66 -> 18 | F78: =IF(W66=0,"",B66) -> 18 | R78: Problèmes vs expert | V78: =IF(W66=0,0,IF(V76<>0,AP66,0)) -> 3 | W78: =IF(W66=0,0,IF(W76<>0,AQ66,0)) -> 6 | X78: =IF(W66=0,0,IF(X76<>0,AR66,0)) -> 10 | Y78: =IF(W66=0,0,IF(Y76<>0,AS66,0)) -> 5 | Z78: =IF(W66=0,0,IF(Z76<>0,AT66,0)) -> 2
A79: Problèmes répétabilité | D79: =X66 -> 0 | F79: =IF(W66=0,"",X66) -> 0 | R79: Plus sévère | V79: =AV66 -> 1 | W79: =AX66 -> 0 | X79: =AZ66 -> 1 | Y79: =BB66 -> 1 | Z79: =BD66 -> 0
A80: Problèmes reproductibilité | D80: =Y66 -> 14 | F80: =IF(W66=0,"",Y66+Z66) -> 14 | R80: Moins sévère | V80: =AW66 -> 2 | W80: =AY66 -> 6 | X80: =BA66 -> 9 | Y80: =BC66 -> 4 | Z80: =BE66 -> 2
A81: Total problèmes | D81: =SUM(D79:D80) -> 14 | F81: =IF(W66=0,"",F79+F80) -> 14 | R81: Total Problèmes | V81: =V77+V78 -> 3 | W81: =W77+W78 -> 6 | X81: 10 | Y81: 5 | Z81: 2
A82: 95% LSC | D82: =IF((D78-D81)=0,1-10^(LOG10((1-0.95)/2)/D78),IF(D81=0,1,BETAINV((1+0.95)/2,(D78-D81)+1,D81))) -> 0.4763727188 | F82: =IF(W66=0,"",IF((F78-F81)=0,1-10^(LOG10((1-0.95)/2)/F78),IF(F81=0,1,BETAINV((1+0.95)/2,(F78-F81)+1,F81)))) -> 0.4763727188 | R82: 95% LSC | V82: =IF(B66=0,"",IF((V76-V81)=0,1-10^(LOG10((1-0.95)/2)/V76),IF(V81=0,1,BETAINV((1+0.95)/2,(V76-V81)+1,V81)))) -> 0.9642148018 | W82: =IF(F66=0,"",IF((W76-W81)=0,1-10^(LOG10((1-0.95)/2)/W76),IF(W81=0,1,BETAINV((1+0.95)/2,(W76-W81)+1,W81)))) -> 0.8665723801 | X82: =IF(J66=0,"",IF((X76-X81)=0,1-10^(LOG10((1-0.95)/2)/X76),IF(X81=0,1,BETAINV((1+0.95)/2,(X76-X81)+1,X81)))) -> 0.6924285889 | Y82: =IF(N66=0,"",IF((Y76-Y81)=0,1-10^(LOG10((1-0.95)/2)/Y76),IF(Y81=0,1,BETAINV((1+0.95)/2,(Y76-Y81)+1,Y81)))) -> 0.9030508995 | Z82: =IF(R66=0,"",IF((Z76-Z81)=0,1-10^(LOG10((1-0.95)/2)/Z76),IF(Z81=0,1,BETAINV((1+0.95)/2,(Z76-Z81)+1,Z81)))) -> 0.9862487316
A83: Score s % | D83: =(D78-D81)/D78 -> 0.2222222222 | F83: =IF(W66=0,"",(F78-F81)/F78) -> 0.2222222222 | R83: Score % | V83: =IF(V76>0,(V76-V81)/V76,"") -> 0.8333333333 | W83: =IF(W76>0,(W76-W81)/W76,"") -> 0.6666666667 | X83: 0.4444444444 | Y83: 0.7222222222 | Z83: 0.8888888889
A84: 95% LIC | D84: =IF(D81=0,10^(LOG10((1-0.95)/2)*D78),IF(D78=D81,0,1-BETAINV((1+0.95)/2,D81+1,D78-D81))) -> 0.06409215927 | F84: =IF(W66=0,"",IF(F81=0,10^(LOG10((1-0.95)/2)*F78),IF(F78=F81,0,1-BETAINV((1+0.95)/2,F81+1,F78-F81)))) -> 0.06409215927 | R84: 95% LIC | V84: =IF(B66=0,"",IF(V81=0,10^(LOG10((1-0.95)/2)*V76),IF(V76=V81,0,1-BETAINV((1+0.95)/2,V81+1,V76-V81)))) -> 0.5858230591 | W84: =IF(F66=0,"",IF(W81=0,10^(LOG10((1-0.95)/2)*W76),IF(W76=W81,0,1-BETAINV((1+0.95)/2,W81+1,W76-W81)))) -> 0.4099254608 | X84: =IF(J66=0,"",IF(X81=0,10^(LOG10((1-0.95)/2)*X76),IF(X76=X81,0,1-BETAINV((1+0.95)/2,X81+1,X76-X81)))) -> 0.2153015137 | Y84: =IF(N66=0,"",IF(Y81=0,10^(LOG10((1-0.95)/2)*Y76),IF(Y76=Y81,0,1-BETAINV((1+0.95)/2,Y81+1,Y76-Y81)))) -> 0.4651985168 | Z84: =IF(R66=0,"",IF(Z81=0,10^(LOG10((1-0.95)/2)*Z76),IF(Z76=Z81,0,1-BETAINV((1+0.95)/2,Z81+1,Z76-Z81)))) -> 0.652879715
D85: =IF(D83<0.9,"Pas adapté","Adapté") -> Pas adapté | F85: =IF(F83="","",IF(F83<0.8,"Pas adapté","Adapté")) -> Pas adapté | R85: Conclusion | V85: =IF(V83="","",IF(V83<0.9,"Pas adapté","Adapté")) -> Pas adapté | W85: =IF(W83="","",IF(W83<0.9,"Pas adapté","Adapté")) -> Pas adapté | X85: =IF(X83="","",IF(X83<0.9,"Pas adapté","Adapté")) -> Pas adapté | Y85: =IF(Y83="","",IF(Y83<0.9,"Pas adapté","Adapté")) -> Pas adapté | Z85: Pas adapté
A112: Test du nombre de mesures par opérateurs | E112: Test du nombre de pièces par opérateurs
A114: Opé1 | B114: =IF(D66=0,IF(B66<>C66,1,0),IF(OR(B66<>C66,B66<>D66),1,0)) -> 0 | E114: =B66 -> 18 | F114: =F66 -> 18 | G114: =J66 -> 18 | H114: =N66 -> 18 | I114: =R66 -> 18
A115: Opé2 | B115: =IF(H66=0,IF(F66<>G66,1,0),IF(OR(F66<>G66,F66<>H66),1,0)) -> 0
A116: Opé3 | B116: =IF(L66=0,IF(J66<>K66,1,0),IF(OR(J66<>K66,J66<>L66),1,0)) -> 0 | E116: =IF(OR(E114=0,F114=0),0,IF(E114<>F114,1,0)) -> 0 | F116: =IF(OR(F114=0,G114=0),0,IF(F114<>G114,1,0)) -> 0 | G116: 0 | H116: 0 | I116: 0 | J116: =SUM(E116:G116) -> 0
A117: Opé4 | B117: =IF(P66=0,IF(N66<>O66,1,0),IF(OR(N66<>O66,N66<>P66),1,0)) -> 0
A118: Opé5 | B118: =IF(T66=0,IF(R66<>S66,1,0),IF(OR(R66<>S66,R66<>T66),1,0)) -> 0 | E118: =IF(E114<>0,1,0) -> 1 | F118: =IF(F114<>0,1,0) -> 1 | G118: 1 | H118: 1 | I118: 1
B119: =SUM(B114:B118) -> 0

Sheet CNOMO
A1: cible :
A2: Intervalle de tolérance :
A3: Moyen de contrôle :
A4: Résolution :
A5: Phase préliminaire - Répétabilité des mesurages de l'étalon sur le moyen
A6: Mesure n° : | B6: 1 | C6: 2 | D6: 3 | E6: 4 | F6: 5 | H6: Indice de qualité:
A7: Valeur :
A8: Se = | B8: =STDEV(B7:F7) -> 
A9: Répétabilité des mesurages = +/- Ie = +/- 2 Se = +/- | E9: =2*B8 -> 
A11: =IF(E9<=C2/A55,"la répétabilité est acceptable","la répétabilité n'est pas acceptable") -> 
A14: Phase préliminaire - Répétabilité des mesurages d'une pièce sur le moyen
A15: Mesure n° | B15: 1 | C15: 2 | D15: 3 | E15: 4 | F15: 5
A16: Valeur
A17: Mesure n° | B17: 6 | C17: 7 | D17: 8 | E17: 9 | F17: 10
A18: Valeur
A19: Sr = | B19: =STDEV(B16:F16,B18:F18) -> 
A20: Répétabilité des mesurages = +/- Ir = +/- 2Sr = +/- | E20: =2*B19 -> 
A22: =IF(E20<=C2/8,"la répétabilité est acceptable","la répétabilité n'est pas acceptable") -> 
A24: Mesure de 5 pièces sur le moyen de contrôle
A25: Mesure n° | B25: Pièce 1 | C25: Pièce 2 | D25: Pièce 3 | E25: Pièce 4 | F25: Pièce 5
A26: Yi1
A27: Yi2
A28: Yi3
A29: Yi4
A30: Yi5
A31: Mesure de 5 pièces en métrologie
A32: Xi
A33: Différence entre la vraie valeur et le mesurage par le moyen
A34: di1=Yi1-Xi | B34: =IF(B26="","",B26-B$32) -> 
A35: di2=Yi2-Xi
A36: di3=Yi3-Xi
A37: di4=Yi4-Xi
A38: di5=Yi5-Xi | F38: =IF(F30="","",F30-F$32) -> 
A39: Moyenne des différences : J = | D39: =AVERAGE(B34:F38) -> 
A40: Ecart-type des différences : Sg = | D40: =STDEV(B34:F38) -> 
A41: Calcul du Cmc
A43: Incertitude de mesure : Ig= | C43: =ABS(D39)+2*SQRT(POWER(B8,2)+POWER(D40,2)) -> 
A45: Cmc = IT/2.Ig = | C45: =C2/(2*C43) -> 
A47: =IF(C45>4,"MOYEN DECLARE CAPABLE","MOYEN DECLARE NON CAPABLE") -> 
A54: Q | B54: Résolution | C54: Ie | D54: Ir | E54: Imetro | F54: CMC
A55: 2 | B55: =IF($A$55=1,"10","20") -> 20 | C55: =IF($A$55=1,"10","20") -> 20 | D55: =IF($A$55=1,"4","8") -> 8 | E55: =IF($A$55=1,"8","16") -> 16 | F55: =IF($A$55=1,"2","4") -> 4
